Amount (�),Supplier,Service ,Division,Cost Centre,Expenditure Category,Date Paid,Type,Transaction Reference,Dept
"7,078,792.30",Nottinghamshire County Council,Collection Fund,Precepting Authorities,Notts County Council,Precept Paid,24/05/2018,Collection Fund Accounts,86195,FINANCE & CORPORATE SERVICES
"7,056,793.20",Nottinghamshire County Council,Collection Fund,Precepting Authorities,Notts County Council,Precept Paid,29/06/2018,Collection Fund Accounts,86196,FINANCE & CORPORATE SERVICES
"7,034,794.10",Nottinghamshire County Council,Collection Fund,Precepting Authorities,Notts County Council,Precept Paid,18/04/2018,Collection Fund Accounts,84899,FINANCE & CORPORATE SERVICES
"829,009.00",Notts Police & Crime Commissioner,Collection Fund,Precepting Authorities,Police Authority,Precept Paid,18/04/2018,Collection Fund Accounts,84889,FINANCE & CORPORATE SERVICES
"829,009.00",Notts Police & Crime Commissioner,Collection Fund,Precepting Authorities,Police Authority,Precept Paid,24/05/2018,Collection Fund Accounts,84890,FINANCE & CORPORATE SERVICES
"829,009.00",Notts Police & Crime Commissioner,Collection Fund,Precepting Authorities,Police Authority,Precept Paid,29/06/2018,Collection Fund Accounts,84891,FINANCE & CORPORATE SERVICES
"356,501.00",Notts Fire And Rescue Service,Collection Fund,Precepting Authorities,Fire Authority,Precept Paid,24/05/2018,Collection Fund Accounts,84878,FINANCE & CORPORATE SERVICES
"356,501.00",Notts Fire And Rescue Service,Collection Fund,Precepting Authorities,Fire Authority,Precept Paid,29/06/2018,Collection Fund Accounts,84879,FINANCE & CORPORATE SERVICES
"356,496.00",Notts Fire And Rescue Service,Collection Fund,Precepting Authorities,Fire Authority,Precept Paid,18/04/2018,Collection Fund Accounts,84877,FINANCE & CORPORATE SERVICES
"166,755.00",Terberg Matec Uk Limited,Capital Expenditure,Neighbourhoods,Vehicle Replacement,Vehicles Acquisition,25/04/2018,Supplies & Services,84836,CAPITAL
"150,059.00",Radcliffe On Trent Parish Council,Collection Fund,Parishes,Parish Councils,Precept Paid,25/04/2018,Collection Fund Accounts,84943,FINANCE & CORPORATE SERVICES
"148,657.50",Ruddington Parish Council,Collection Fund,Parishes,Parish Councils,Precept Paid,25/04/2018,Collection Fund Accounts,84946,FINANCE & CORPORATE SERVICES
"144,944.19",Fosse Medicare Ltd,Capital Expenditure,Transformation & Innovation,Cotgrave Masterplan,Legal & Professional Services,15/05/2018,Supplies & Services,85976,CAPITAL
"142,800.00",A&S Enterprises Limited,Capital Expenditure,Transformation & Innovation,Cotgrave Masterplan,Legal & Professional Services,04/05/2018,Supplies & Services,85518,CAPITAL
"141,774.81",Zurich Municipal,Finance & Corporate Services,Financial Services,Main Premiums,Miscellaneous Insurances,06/04/2018,Supplies & Services,84359,FINANCE & CORPORATE SERVICES
"134,140.00",Bingham Town Council (Precept),Collection Fund,Parishes,Parish Councils,Precept Paid,25/04/2018,Collection Fund Accounts,84911,FINANCE & CORPORATE SERVICES
"132,803.00",East Leake Parish Council,Collection Fund,Parishes,Parish Councils,Precept Paid,25/04/2018,Collection Fund Accounts,84922,FINANCE & CORPORATE SERVICES
"132,371.19",Streetwise Environmental Ltd,Neighbourhoods,Waste & Fleet Management,Streetwise Contract,Contractors-Third Party,26/06/2018,Third Party Payments,86919,NEIGHBOURHOODS
"126,852.52",Streetwise Environmental Ltd,Neighbourhoods,Waste & Fleet Management,Streetwise Contract,Contractors-Third Party,25/04/2018,Third Party Payments,85040,NEIGHBOURHOODS
"126,852.52",Streetwise Environmental Ltd,Neighbourhoods,Waste & Fleet Management,Streetwise Contract,Contractors-Third Party,03/06/2018,Third Party Payments,86057,NEIGHBOURHOODS
"123,945.50",Trent Valley Internal Drainage Board,Finance & Corporate Services,Financial Services,Internal Drainage Board Levies,Other Services,01/06/2018,Supplies & Services,84888,FINANCE & CORPORATE SERVICES
"110,523.74",Fosse Medicare Ltd,Capital Expenditure,Transformation & Innovation,Cotgrave Masterplan,Legal & Professional Services,15/06/2018,Supplies & Services,86848,CAPITAL
"99,524.00",A&S Enterprises Limited,Capital Expenditure,Transformation & Innovation,Cotgrave Masterplan,Legal & Professional Services,13/04/2018,Supplies & Services,84835,CAPITAL
"97,417.00",Cotgrave Town Council,Collection Fund,Parishes,Parish Councils,Precept Paid,25/04/2018,Collection Fund Accounts,84875,FINANCE & CORPORATE SERVICES
"88,736.00",A&S Enterprises Limited,Capital Expenditure,Transformation & Innovation,Cotgrave Masterplan,Legal & Professional Services,24/05/2018,Supplies & Services,86130,CAPITAL
"86,695.00",Keyworth Parish Council,Collection Fund,Parishes,Parish Councils,Precept Paid,25/04/2018,Collection Fund Accounts,84932,FINANCE & CORPORATE SERVICES
"59,512.41",Fosse Medicare Ltd,Capital Expenditure,Transformation & Innovation,Cotgrave Masterplan,Legal & Professional Services,18/04/2018,Supplies & Services,85028,CAPITAL
"45,417.50",Cropwell Bishop Parish Council,Collection Fund,Parishes,Parish Councils,Precept Paid,25/04/2018,Collection Fund Accounts,84917,FINANCE & CORPORATE SERVICES
"42,883.58",Nottinghamshire County Council,Neighbourhoods,Leisure Contracts & Car Parks,East Leake Leisure Centre,Olas - Notts County Council,04/05/2018,Third Party Payments,85509,FINANCE & CORPORATE SERVICES
"42,289.31",Zurich Municipal,Finance & Corporate Services,Financial Services,Main Premiums,Employee Insurances,06/04/2018,Employee Related Expenditure,84359,FINANCE & CORPORATE SERVICES
"41,749.16",Nottinghamshire County Council,Neighbourhoods,Leisure Contracts & Car Parks,East Leake Leisure Centre,Olas - Notts County Council,15/05/2018,Third Party Payments,85510,FINANCE & CORPORATE SERVICES
"40,614.74",Nottinghamshire County Council,Neighbourhoods,Leisure Contracts & Car Parks,East Leake Leisure Centre,Olas - Notts County Council,04/05/2018,Third Party Payments,80944,FINANCE & CORPORATE SERVICES
"36,815.92",Horizon Landscapes Ltd,Capital Expenditure,Communties,Rcp - Car Park Improvements,Contractors-Third Party,04/05/2018,Third Party Payments,85258,CAPITAL
"34,000.00",Idox Software Limited,Transformation,Ict,It Rechargeable Costs,Maintenance Contracts - S&S,13/04/2018,Supplies & Services,84600,TRANSFORMATION
"32,635.58",Nottingham City Council,Neighbourhoods,Waste & Fleet Management,Garage,Contractors-Transport,25/04/2018,Transport Related Expenditure,85083,NEIGHBOURHOODS
"32,000.00",Nottingham City Council,Liabilities,Long Term Liabilities,12/01380 Bus Service Prov Wb,Balance Sheet Exp In The Year,27/04/2018,Balance Sheet Exp In The Year,85450,FINANCE & CORPORATE SERVICES
"30,094.34",Zurich Municipal,Finance & Corporate Services,Financial Services,Main Premiums,Miscellaneous Insurances,06/04/2018,Supplies & Services,84414,FINANCE & CORPORATE SERVICES
"27,975.00",Tollerton Parish Council,Collection Fund,Parishes,Parish Councils,Precept Paid,25/04/2018,Collection Fund Accounts,84955,FINANCE & CORPORATE SERVICES
"27,319.05",Zurich Municipal,Finance & Corporate Services,Financial Services,Main Premiums,Premises Insurance,06/04/2018,Premises Related Expenditure,84359,FINANCE & CORPORATE SERVICES
"24,948.68",Nottingham City Council,Neighbourhoods,Waste & Fleet Management,Garage,Contractors-Transport,24/05/2018,Transport Related Expenditure,86216,NEIGHBOURHOODS
"24,133.90",Certas Energy T/A Pace Fuelcare,Neighbourhoods,Waste & Fleet Management,Fleet,Diesel,15/06/2018,Transport Related Expenditure,86646,NEIGHBOURHOODS
"24,101.43",Certas Energy T/A Pace Fuelcare,Neighbourhoods,Waste & Fleet Management,Fleet,Diesel,08/06/2018,Transport Related Expenditure,86336,NEIGHBOURHOODS
"22,846.20",Certas Energy T/A Pace Fuelcare,Neighbourhoods,Waste & Fleet Management,Fleet,Diesel,04/05/2018,Transport Related Expenditure,85452,NEIGHBOURHOODS
"20,910.12",Capita Software Services,Transformation,Ict,It Rechargeable Costs,Maintenance Contracts - S&S,25/04/2018,Supplies & Services,84873,TRANSFORMATION
"20,430.98",Certas Energy T/A Pace Fuelcare,Neighbourhoods,Waste & Fleet Management,Fleet,Diesel,18/05/2018,Transport Related Expenditure,85991,NEIGHBOURHOODS
"20,312.16",Broxtowe Borough Council,Neighbourhoods,Leisure Contracts & Car Parks,Car Parks,Contractors-Supplies & Servs,19/04/2018,Supplies & Services,84794,FINANCE & CORPORATE SERVICES
"20,000.00",South Kesteven D C,Communities,Building Control,Building Control - Fee Earning,Other Local Authorities,06/04/2018,Third Party Payments,84597,COMMUNITIES
"19,200.00",Nottingham And District Cab,Neighbourhoods,Strategic Housing,Homelessness Prevention,Grants,21/05/2018,Supplies & Services,85585,NEIGHBOURHOODS
"19,144.00",East Bridgford Parish Council,Collection Fund,Parishes,Parish Councils,Precept Paid,25/04/2018,Collection Fund Accounts,84920,FINANCE & CORPORATE SERVICES
"18,950.00",Holme Pierrepont & Gamston Parish Council,Collection Fund,Parishes,Parish Councils,Precept Paid,25/04/2018,Collection Fund Accounts,84930,FINANCE & CORPORATE SERVICES
"18,699.00",Gotham Parish Council,Collection Fund,Parishes,Parish Councils,Precept Paid,25/04/2018,Collection Fund Accounts,84925,FINANCE & CORPORATE SERVICES
"18,662.63",Parkwood Community Leisure,Neighbourhoods,Leisure Contracts & Car Parks,Leisure Management Contract,Parkwood Contract,15/05/2018,Third Party Payments,84432,FINANCE & CORPORATE SERVICES
"18,500.00",Bunny Parish Council,Collection Fund,Parishes,Parish Councils,Precept Paid,25/04/2018,Collection Fund Accounts,84914,FINANCE & CORPORATE SERVICES
"18,173.83",Parkwood Community Leisure,Transformation,Property Services,Arena Civic Centre,Electricity,06/04/2018,Premises Related Expenditure,82705,TRANSFORMATION
"17,848.03",Capita Business Services Ltd,Transformation,Ict,It Rechargeable Costs,Maintenance Contracts - S&S,25/04/2018,Supplies & Services,84872,TRANSFORMATION
"17,738.50",Langar Cum Barnstone Parish Council,Collection Fund,Parishes,Parish Councils,Precept Paid,25/04/2018,Collection Fund Accounts,84936,FINANCE & CORPORATE SERVICES
"17,622.98",Certas Energy T/A Pace Fuelcare,Neighbourhoods,Waste & Fleet Management,Fleet,Diesel,04/05/2018,Transport Related Expenditure,85249,NEIGHBOURHOODS
"15,925.00",Via East Midlands,Transformation,Economic Regeneration,Economic Development,Other Services,25/04/2018,Supplies & Services,84796,TRANSFORMATION
"15,881.32",Streetwise Environmental Ltd,Transformation,Property Services,Open Spaces & Footpaths,Responsive Works - Buildings,13/04/2018,Premises Related Expenditure,84841,TRANSFORMATION
"15,763.55",Toot Hill School,Neighbourhoods,Leisure Contracts & Car Parks,Leisure Management Contract,Electricity,04/05/2018,Premises Related Expenditure,85098,FINANCE & CORPORATE SERVICES
"15,470.00",Newton Parish Council,Collection Fund,Parishes,Parish Councils,Precept Paid,25/04/2018,Collection Fund Accounts,84938,FINANCE & CORPORATE SERVICES
"15,250.00",Ropewalk Chambers,Communities,Planning & Growth,Development Control,Legal & Professional Services,08/06/2018,Supplies & Services,85888,COMMUNITIES
"15,000.00",Rushcliffe Cvs,Communities,Community Development,Community Development,Support Service Costs-Services,19/06/2018,Support Services,86457,COMMUNITIES
"14,500.00",Costock Parish  Council,Collection Fund,Parishes,Parish Councils,Precept Paid,25/04/2018,Collection Fund Accounts,84916,FINANCE & CORPORATE SERVICES
"14,469.00",Craemer Uk Ltd,Capital Expenditure,Neighbourhoods,Wheeled Bins,Other Equipment/Materials,25/04/2018,Supplies & Services,84769,CAPITAL
"14,000.00",Savills Uk Limited,Capital Expenditure,Transformation & Innovation,Co-Op Trent Boulevard,Legal & Professional Services,24/05/2018,Supplies & Services,86033,CAPITAL
"13,351.00",Normanton On Soar Parish Counc,Collection Fund,Parishes,Parish Councils,Precept Paid,25/04/2018,Collection Fund Accounts,84939,FINANCE & CORPORATE SERVICES
"13,260.00",Flintham Parish Council,Collection Fund,Parishes,Parish Councils,Precept Paid,25/04/2018,Collection Fund Accounts,84924,FINANCE & CORPORATE SERVICES
"12,916.51",Idox Software Limited,Transformation,Ict,It Rechargeable Costs,Maintenance Contracts - S&S,15/06/2018,Supplies & Services,86373,TRANSFORMATION
"12,900.50",Sutton Bonington Parish Counc,Collection Fund,Parishes,Parish Councils,Precept Paid,25/04/2018,Collection Fund Accounts,84952,FINANCE & CORPORATE SERVICES
"12,588.20",Axess Systems Ltd,Capital Expenditure,Transformation & Innovation,Ict Replacement Programme,Computer Hardware,11/05/2018,Supplies & Services,84734,CAPITAL
"12,547.50",Bartec Auto Id Ltd,Transformation,Ict,It Rechargeable Costs,Maintenance Contracts - S&S,19/04/2018,Supplies & Services,84832,TRANSFORMATION
"12,499.98",Ngi Uk Limited,Transformation,Economic Regeneration,Economic Development,Other Services,26/06/2018,Supplies & Services,86754,TRANSFORMATION
"12,188.00",Cropwell Butler Parish Council,Collection Fund,Parishes,Parish Councils,Precept Paid,25/04/2018,Collection Fund Accounts,84919,FINANCE & CORPORATE SERVICES
"12,042.58",Zurich Municipal,Finance & Corporate Services,Financial Services,Main Premiums,Premises Insurance,06/04/2018,Premises Related Expenditure,84360,FINANCE & CORPORATE SERVICES
"12,035.00",Whatton In The Vale Parish Council,Collection Fund,Parishes,Parish Councils,Precept Paid,25/04/2018,Collection Fund Accounts,84959,FINANCE & CORPORATE SERVICES
"11,911.10",Xpress Software Solutions Ltd,Finance & Corporate Services,Democratic Services,Electoral Registration,Software,21/05/2018,Supplies & Services,84804,FINANCE & CORPORATE SERVICES
"11,798.00",Wysall & Thorpe Parish Council,Collection Fund,Parishes,Parish Councils,Precept Paid,25/04/2018,Collection Fund Accounts,84962,FINANCE & CORPORATE SERVICES
"11,687.13",Radcliffe On Trent Parish Council,Transformation,Property Services,Parish Run Pub Conveniences,Grants,11/05/2018,Supplies & Services,85570,TRANSFORMATION
"11,462.21",Toot Hill School,Neighbourhoods,Leisure Contracts & Car Parks,Leisure Management Contract,Gas,04/05/2018,Premises Related Expenditure,85098,FINANCE & CORPORATE SERVICES
"10,606.00",Willoughby On The Wolds P C,Collection Fund,Parishes,Parish Councils,Precept Paid,25/04/2018,Collection Fund Accounts,84961,FINANCE & CORPORATE SERVICES
"10,450.00",Local Government Association,Finance & Corporate Services,Emt & Transformation,Executive Management Team,Other Miscellaneous Expenses,04/05/2018,Supplies & Services,85577,FINANCE & CORPORATE SERVICES
"10,198.00",Granby Cum Sutton Parish Coun,Collection Fund,Parishes,Parish Councils,Precept Paid,25/04/2018,Collection Fund Accounts,84927,FINANCE & CORPORATE SERVICES
"10,000.00",Nottingham City Council,Communities,Community Development,Community Development,Projects & Activities,11/05/2018,Supplies & Services,85206,COMMUNITIES
"9,959.00",B & K Thomas (Holdings) Limited,Rechargeable Accounts,Suspense Accounts,Suspense No Code,Returned Creditors,08/06/2018,Returned Creditors,86647,FINANCE & CORPORATE SERVICES
"9,920.00",Hawksworth Parish Meeting,Collection Fund,Parishes,Parish Councils,Precept Paid,25/04/2018,Collection Fund Accounts,84928,FINANCE & CORPORATE SERVICES
"9,586.00",Public-I,Capital Expenditure,Transformation & Innovation,Ict Replacement Programme,Computer Hardware,04/05/2018,Supplies & Services,84166,CAPITAL
"9,250.00",Savills Uk Limited,Capital Expenditure,Transformation & Innovation,Finch Close,Legal & Professional Services,04/05/2018,Supplies & Services,84758,CAPITAL
"9,180.00",Colston Bassett Parish Council,Collection Fund,Parishes,Parish Councils,Precept Paid,25/04/2018,Collection Fund Accounts,84915,FINANCE & CORPORATE SERVICES
"9,046.00",Orston Parish Council,Collection Fund,Parishes,Parish Councils,Precept Paid,25/04/2018,Collection Fund Accounts,84941,FINANCE & CORPORATE SERVICES
"8,790.00",Shelford Parish Council,Collection Fund,Parishes,Parish Councils,Precept Paid,25/04/2018,Collection Fund Accounts,85073,FINANCE & CORPORATE SERVICES
"8,500.00",Upper Broughton Parish Council,Collection Fund,Parishes,Parish Councils,Precept Paid,25/04/2018,Collection Fund Accounts,84957,FINANCE & CORPORATE SERVICES
"8,024.00",Browne Jacobson,Transformation,Property Services,Land Holdings,Legal & Professional Services,25/04/2018,Supplies & Services,85233,TRANSFORMATION
"7,995.00",Jgp Resourcing Limited,Transformation,Human Resources,Human Resources,Advertising,15/05/2018,Supplies & Services,85545,TRANSFORMATION
"7,952.00",Zurich Municipal,Finance & Corporate Services,Financial Services,Main Premiums,Employee Insurances,06/04/2018,Employee Related Expenditure,84411,FINANCE & CORPORATE SERVICES
"7,875.00",Aslockton Parish Council,Collection Fund,Parishes,Parish Councils,Precept Paid,25/04/2018,Collection Fund Accounts,84909,FINANCE & CORPORATE SERVICES
"7,559.79",The South Wolds Academy And Sixth Form,Neighbourhoods,Leisure Contracts & Car Parks,Leisure Management Contract,Gas,04/06/2018,Premises Related Expenditure,86134,FINANCE & CORPORATE SERVICES
"7,453.71",Terminal Four,Transformation,Ict,It Rechargeable Costs,Maintenance Contracts - S&S,04/05/2018,Supplies & Services,85162,TRANSFORMATION
"7,296.00",Normanton On The Wolds P C,Collection Fund,Parishes,Parish Councils,Precept Paid,25/04/2018,Collection Fund Accounts,84940,FINANCE & CORPORATE SERVICES
"7,287.00",Browne Jacobson,Capital Expenditure,Transformation & Innovation,Bingham Land Off Chapel Lane,Legal & Professional Services,26/06/2018,Supplies & Services,86342,CAPITAL
"7,275.00",Advanced Business Solutions,Capital Expenditure,Transformation & Innovation,Applications/Apps,Software,04/05/2018,Supplies & Services,85150,CAPITAL
"7,230.00",Hickling Parish Council,Collection Fund,Parishes,Parish Councils,Precept Paid,25/04/2018,Collection Fund Accounts,84929,FINANCE & CORPORATE SERVICES
"7,015.00","Urbed (Urbanism, Environment And Design) Ltd",Transformation,Economic Regeneration,Economic Development,Other Services,18/05/2018,Supplies & Services,85588,TRANSFORMATION
"6,836.47",Toot Hill School,Neighbourhoods,Leisure Contracts & Car Parks,Leisure Management Contract,Gas,24/05/2018,Premises Related Expenditure,85992,FINANCE & CORPORATE SERVICES
"6,500.00",Kinoulton Parish Council,Collection Fund,Parishes,Parish Councils,Precept Paid,25/04/2018,Collection Fund Accounts,84935,FINANCE & CORPORATE SERVICES
"6,500.00",Via East Midlands,Communities,Local Development Framework,Land Charges,Other Services,04/06/2018,Supplies & Services,86142,COMMUNITIES
"6,286.66",Hill Bros (Nottingham) Ltd,Capital Expenditure,Neighbourhoods,Disabled Facilities Grant,Grants,01/06/2018,Supplies & Services,85602,CAPITAL
"6,200.00",Rsm,Finance & Corporate Services,Financial Services,Internal Audit,Legal & Professional Services,06/04/2018,Supplies & Services,84565,FINANCE & CORPORATE SERVICES
"6,150.00",Stanton On The Wolds Parish Co,Collection Fund,Parishes,Parish Councils,Precept Paid,25/04/2018,Collection Fund Accounts,84951,FINANCE & CORPORATE SERVICES
"6,086.64",Zurich Municipal,Finance & Corporate Services,Financial Services,Main Premiums,Miscellaneous Insurances,06/04/2018,Supplies & Services,84412,FINANCE & CORPORATE SERVICES
"6,064.60",Tunstall Telecom,Neighbourhoods,Strategic Housing,Home Alarms,Other Equipment/Materials,21/06/2018,Supplies & Services,86420,NEIGHBOURHOODS
"5,988.00",A R Signs Ltd,Finance & Corporate Services,"Performance, Repn & Comms",Performance And Reputation,External Printing,13/04/2018,Supplies & Services,84355,FINANCE & CORPORATE SERVICES
"5,985.86",Toot Hill School,Neighbourhoods,Leisure Contracts & Car Parks,Leisure Management Contract,Electricity,24/05/2018,Premises Related Expenditure,85992,FINANCE & CORPORATE SERVICES
"5,878.00",Widmerpool Parish Council,Collection Fund,Parishes,Parish Councils,Precept Paid,25/04/2018,Collection Fund Accounts,84960,FINANCE & CORPORATE SERVICES
"5,800.00",Purcell Miller Tritton Llp,Capital Expenditure,Transformation & Innovation,Bridgford Hall Refurbishment,Legal & Professional Services,08/06/2018,Supplies & Services,86379,CAPITAL
"5,773.53",Notts County Cricket Club,Finance & Corporate Services,Democratic Services,Mayoral Expenses,Catering Provisions,18/04/2018,Supplies & Services,84755,FINANCE & CORPORATE SERVICES
"5,630.00",Zurich Municipal,Finance & Corporate Services,Financial Services,Liability Claims,Excesses Paid,04/05/2018,Other Control/Suspense A/Cs,84831,FINANCE & CORPORATE SERVICES
"5,493.00",Esri (Uk) Ltd,Transformation,Ict,It Rechargeable Costs,Maintenance Contracts - S&S,13/04/2018,Supplies & Services,84057,TRANSFORMATION
"5,486.79",Royal Mail Group Ltd,Transformation,Bsu,Central Mail,Postages,04/05/2018,Supplies & Services,85035,TRANSFORMATION
"5,468.69",Nottinghamshire County Council,Neighbourhoods,Waste & Fleet Management,Medical Collections,Waste Disposal,19/04/2018,Supplies & Services,84750,NEIGHBOURHOODS
"5,320.38",Tunstall Response Ltd,Neighbourhoods,Strategic Housing,Home Alarms,Other Services,08/06/2018,Supplies & Services,86235,NEIGHBOURHOODS
"5,270.00",Streetwise Environmental Ltd,Transformation,Property Services,Open Spaces & Footpaths,Responsive Works - Buildings,13/04/2018,Premises Related Expenditure,84718,TRANSFORMATION
"5,260.61",Parkwood Community Leisure,Neighbourhoods,Leisure Contracts & Car Parks,Leisure Management Contract,Parkwood Contract,04/06/2018,Third Party Payments,86059,FINANCE & CORPORATE SERVICES
"5,260.61",Parkwood Leisure Ltd,Neighbourhoods,Leisure Contracts & Car Parks,Leisure Management Contract,Parkwood Contract,09/05/2018,Third Party Payments,85519,FINANCE & CORPORATE SERVICES
"5,244.60",Knight Kavanagh And Page Ltd,Capital Expenditure,Neighbourhoods,Blc Enhancements,Legal & Professional Services,25/04/2018,Supplies & Services,83885,CAPITAL
"5,217.94",The South Wolds Academy And Sixth Form,Neighbourhoods,Leisure Contracts & Car Parks,Leisure Management Contract,Premises Rents,08/06/2018,Premises Related Expenditure,86329,FINANCE & CORPORATE SERVICES
"5,193.69",Ndj Ltd T/A Belton Construction,Capital Expenditure,Neighbourhoods,Disabled Facilities Grant,Grants,25/04/2018,Supplies & Services,85097,CAPITAL
"5,151.00",Kingkraft,Capital Expenditure,Neighbourhoods,Disabled Facilities Grant,Grants,04/06/2018,Supplies & Services,86223,CAPITAL
"5,125.00",Stanford On Soar Parish Council,Collection Fund,Parishes,Parish Councils,Precept Paid,25/04/2018,Collection Fund Accounts,84950,FINANCE & CORPORATE SERVICES
"5,088.00",Rempstone Parish Council,Collection Fund,Parishes,Parish Councils,Precept Paid,25/04/2018,Collection Fund Accounts,84945,FINANCE & CORPORATE SERVICES
"5,084.32",Vip System Limited,Neighbourhoods,Environmental Health,Hackney Carriage/Private Hire,Other Equipment/Materials,06/04/2018,Supplies & Services,84427,NEIGHBOURHOODS
"5,031.00",Prism Medical Uk Ltd,Capital Expenditure,Neighbourhoods,Disabled Facilities Grant,Grants,24/05/2018,Supplies & Services,86064,CAPITAL
"5,022.45",Parkwood Leisure Ltd,Transformation,Property Services,Arena Civic Centre,Electricity,06/04/2018,Premises Related Expenditure,83413,TRANSFORMATION
"5,000.00",Broxtowe Borough Council,Neighbourhoods,Environmental Health,Community Safety,Projects & Activities,04/05/2018,Supplies & Services,84775,NEIGHBOURHOODS
"5,000.00",Turner & Townsend Cost Managment Ltd,Capital Expenditure,Neighbourhoods,Arena Development,Legal & Professional Services,18/04/2018,Supplies & Services,84863,CAPITAL
"4,995.00",Nottingham City Council,Finance & Corporate Services,Democratic Services,Members Services,Subscriptions,26/06/2018,Supplies & Services,87040,FINANCE & CORPORATE SERVICES
"4,918.50",Lodge Tyre Co.Ltd,Neighbourhoods,Waste & Fleet Management,Waste Collection,Tyres,21/06/2018,Transport Related Expenditure,86953,NEIGHBOURHOODS
"4,897.49",Nottingham City Council,Neighbourhoods,Waste & Fleet Management,Garage,Contractors-Transport,25/04/2018,Transport Related Expenditure,85044,NEIGHBOURHOODS
"4,883.98",Certas Energy T/A Pace Fuelcare,Neighbourhoods,Waste & Fleet Management,Fleet,Diesel,19/04/2018,Transport Related Expenditure,85060,NEIGHBOURHOODS
"4,875.00",Nottinghamshire County Council,Finance & Corporate Services,"Performance, Repn & Comms",Performance And Reputation,External Printing,04/06/2018,Supplies & Services,86251,FINANCE & CORPORATE SERVICES
"4,800.00",Plumtree Parish Council,Collection Fund,Parishes,Parish Councils,Precept Paid,25/04/2018,Collection Fund Accounts,84942,FINANCE & CORPORATE SERVICES
"4,756.65",Carlton Design & Fabrication,Capital Expenditure,Neighbourhoods,Disabled Facilities Grant,Grants,21/06/2018,Supplies & Services,86928,CAPITAL
"4,640.00",Zurich Municipal,Finance & Corporate Services,Financial Services,Liability Claims,Excesses Paid,04/06/2018,Other Control/Suspense A/Cs,86063,FINANCE & CORPORATE SERVICES
"4,579.09",Aag It Services,Transformation,Ict,It Rechargeable Costs,Maintenance Contracts - S&S,08/06/2018,Supplies & Services,86605,TRANSFORMATION
"4,381.99",The National Leaflet Company,Finance & Corporate Services,"Performance, Repn & Comms",Performance And Reputation,Other Services,25/04/2018,Supplies & Services,85225,FINANCE & CORPORATE SERVICES
"4,320.85",Lodge Tyre Co.Ltd,Neighbourhoods,Waste & Fleet Management,Waste Collection,Tyres,15/05/2018,Transport Related Expenditure,85655,NEIGHBOURHOODS
"4,320.00",Cale Briparc Ltd,Rechargeable Accounts,Suspense Accounts,Suspense No Code,Returned Creditors,21/06/2018,Returned Creditors,86917,FINANCE & CORPORATE SERVICES
"4,203.54",Blachere Illumination Uk Ltd,Transformation,Economic Regeneration,West Bridgford Town Centre,Other Services,24/05/2018,Supplies & Services,85815,TRANSFORMATION
"4,166.66",Ngi Uk Limited,Transformation,Economic Regeneration,Economic Development,Other Services,13/04/2018,Supplies & Services,84715,TRANSFORMATION
"4,158.00",Trent Valley Plumbing & Build,Capital Expenditure,Neighbourhoods,Disabled Facilities Grant,Grants,29/06/2018,Supplies & Services,87147,CAPITAL
"4,100.00",Idox Software Limited,Capital Expenditure,Transformation & Innovation,Applications/Apps,Software,19/06/2018,Supplies & Services,85821,CAPITAL
"4,100.00",Kingston On Soar Parish Council,Collection Fund,Parishes,Parish Councils,Precept Paid,25/04/2018,Collection Fund Accounts,84934,FINANCE & CORPORATE SERVICES
"4,073.78",Frontline Recruitment Ltd,Neighbourhoods,Waste & Fleet Management,Waste Collection,Agency Staff,21/06/2018,Employee Related Expenditure,86436,NEIGHBOURHOODS
"3,984.00",City Of Nottingham,Communities,Community Development,Environmental Promotion,Legal & Professional Services,08/06/2018,Supplies & Services,86598,COMMUNITIES
"3,932.11",Hodson Specialist Contractors,Capital Expenditure,Neighbourhoods,Blc Enhancements,Contractors-Third Party,06/04/2018,Third Party Payments,84366,CAPITAL
"3,910.00",Obam Lift Services Ltd,Capital Expenditure,Neighbourhoods,Disabled Facilities Grant,Grants,21/06/2018,Supplies & Services,86929,CAPITAL
"3,808.46",Parkwood Community Leisure,Transformation,Property Services,Arena Civic Centre,Electricity,04/05/2018,Premises Related Expenditure,84981,TRANSFORMATION
"3,790.47",Bt Telephone Payment Centre,Transformation,Ict,It Rechargeable Costs,Maintenance Contracts - S&S,08/06/2018,Supplies & Services,86259,TRANSFORMATION
"3,778.63",Capita Software Services,Finance & Corporate Services,Revenues & Benefits,Housing Benefits Admin.,Software,08/06/2018,Supplies & Services,86332,FINANCE & CORPORATE SERVICES
"3,750.00",Gfirst Lep Cic,Transformation,Economic Regeneration,Economic Development,Legal & Professional Services,15/05/2018,Supplies & Services,85975,TRANSFORMATION
"3,698.00",A S Response Ltd,Capital Expenditure,Neighbourhoods,Disabled Facilities Grant,Grants,29/06/2018,Supplies & Services,87202,CAPITAL
"3,665.00",Lodge Tyre Co.Ltd,Neighbourhoods,Waste & Fleet Management,Waste Collection,Tyres,18/04/2018,Transport Related Expenditure,84780,NEIGHBOURHOODS
"3,650.13",Streetwise Environmental Ltd,Transformation,Property Services,Open Spaces & Footpaths,Responsive Works - Buildings,13/04/2018,Premises Related Expenditure,84842,TRANSFORMATION
"3,600.00",Cale Briparc Ltd,Capital Expenditure,Neighbourhoods,Car Park Pay & Display Machs,Other Equipment/Materials,08/06/2018,Supplies & Services,86320,CAPITAL
"3,593.25",Protocol Ltd,Transformation,Property Services,The Point,Service Charges,25/04/2018,Income,84973,TRANSFORMATION
"3,580.00",Cipfa Business Limited,Finance & Corporate Services,Financial Services,Financial Services,Books & Publications,11/05/2018,Supplies & Services,85910,FINANCE & CORPORATE SERVICES
"3,575.00",Thrumpton Parish Council,Collection Fund,Parishes,Parish Councils,Precept Paid,25/04/2018,Collection Fund Accounts,84954,FINANCE & CORPORATE SERVICES
"3,530.00",Newton Parish Council,Capital Expenditure,Communties,Capital Grant Funding,Grants,04/05/2018,Supplies & Services,85644,CAPITAL
"3,520.00",Vinshire Plumbing & Heating Limited,Capital Expenditure,Communties,Warm Homes On Prescription,Grants,21/05/2018,Supplies & Services,86051,CAPITAL
"3,500.00",Verisec Ltd,Transformation,Ict,It Rechargeable Costs,Maintenance Contracts - S&S,13/04/2018,Supplies & Services,84358,TRANSFORMATION
"3,495.00",Ra Information Systems,Transformation,Property Services,Property Services,Subscriptions,04/06/2018,Supplies & Services,86325,TRANSFORMATION
"3,477.98",Frontline Recruitment Ltd,Neighbourhoods,Waste & Fleet Management,Waste Collection,Agency Staff,04/06/2018,Employee Related Expenditure,86345,NEIGHBOURHOODS
"3,467.00",Trent Valley Plumbing & Build,Capital Expenditure,Neighbourhoods,Disabled Facilities Grant,Grants,24/05/2018,Supplies & Services,86042,CAPITAL
"3,450.17",Electoral Reform Services,Finance & Corporate Services,Democratic Services,Electoral Registration,Postages,19/04/2018,Supplies & Services,84761,FINANCE & CORPORATE SERVICES
"3,415.45",Parkwood Community Leisure,Transformation,Property Services,Arena Civic Centre,Electricity,08/06/2018,Premises Related Expenditure,86058,TRANSFORMATION
"3,327.00",Barton In Fabis Parish Council,Collection Fund,Parishes,Parish Councils,Precept Paid,25/04/2018,Collection Fund Accounts,84910,FINANCE & CORPORATE SERVICES
"3,250.00",Christie + Co,Transformation,Property Services,Land Holdings,Legal & Professional Services,13/06/2018,Supplies & Services,86435,TRANSFORMATION
"3,250.00",Reed Business Information Ltd,Transformation,Human Resources,Human Resources,Subscriptions,25/04/2018,Supplies & Services,84805,TRANSFORMATION
"3,240.00",Egbert H Taylor & Co Ltd,Neighbourhoods,Waste & Fleet Management,Glass Recycling & Bring Sites,Other Equipment/Materials,27/04/2018,Supplies & Services,84854,NEIGHBOURHOODS
"3,236.50",Royal Mail Group Ltd,Transformation,Bsu,Central Mail,Postages,27/04/2018,Supplies & Services,84874,TRANSFORMATION
"3,214.84",Frontline Recruitment Ltd,Neighbourhoods,Waste & Fleet Management,Waste Collection,Agency Staff,21/06/2018,Employee Related Expenditure,86922,NEIGHBOURHOODS
"3,078.58",Royal Mail Group Ltd,Transformation,Bsu,Central Mail,Postages,13/04/2018,Supplies & Services,84580,TRANSFORMATION
"3,064.00",Vinshire Plumbing & Heating Limited,Capital Expenditure,Communties,Warm Homes On Prescription,Legal & Professional Services,04/05/2018,Supplies & Services,85430,CAPITAL
"3,022.00",Bradmore Parish Council,Collection Fund,Parishes,Parish Councils,Precept Paid,25/04/2018,Collection Fund Accounts,84913,FINANCE & CORPORATE SERVICES
"3,000.00",B.M.B Builders & Plumbers,Capital Expenditure,Neighbourhoods,Disabled Facilities Grant,Grants,26/06/2018,Supplies & Services,87164,CAPITAL
"3,000.00",Web-Labs,Transformation,Ict,It Rechargeable Costs,Maintenance Contracts - S&S,24/05/2018,Supplies & Services,85867,TRANSFORMATION
"2,918.46",Parkwood Community Leisure,Transformation,Property Services,Arena Civic Centre,Electricity,06/04/2018,Premises Related Expenditure,84407,TRANSFORMATION
"2,842.46",Frontline Recruitment Ltd,Neighbourhoods,Waste & Fleet Management,Waste Collection,Agency Staff,15/05/2018,Employee Related Expenditure,85908,NEIGHBOURHOODS
"2,825.00",University Of Leicester,Communities,Planning & Growth,Development Control,Training Expenses,26/06/2018,Employee Related Expenditure,87071,COMMUNITIES
"2,820.00",Temperature Control Limited,Transformation,Property Services,Arena Civic Centre,Service Maintenance Contracts,29/06/2018,Premises Related Expenditure,86832,TRANSFORMATION
"2,765.59",Axess Systems Ltd,Transformation,Ict,It Rechargeable Costs,Maintenance Contracts - S&S,29/06/2018,Supplies & Services,87067,TRANSFORMATION
"2,764.00",Nottinghamshire County Council,Finance & Corporate Services,"Performance, Repn & Comms",Performance And Reputation,External Printing,24/05/2018,Supplies & Services,86112,FINANCE & CORPORATE SERVICES
"2,746.68",Bytes Software Services Ltd,Transformation,Ict,It Rechargeable Costs,Maintenance Contracts - S&S,26/06/2018,Supplies & Services,86606,TRANSFORMATION
"2,695.00",Hemming Group Ltd,Finance & Corporate Services,Emt & Transformation,Executive Management Team,Subscriptions,04/06/2018,Supplies & Services,86029,FINANCE & CORPORATE SERVICES
"2,658.75",Ccs Media,Transformation,Customer Services,Customer Services,Stationery,08/06/2018,Supplies & Services,86233,TRANSFORMATION
"2,590.95",The South Wolds Academy And Sixth Form,Neighbourhoods,Leisure Contracts & Car Parks,Leisure Management Contract,Water Charges,04/05/2018,Premises Related Expenditure,85053,FINANCE & CORPORATE SERVICES
"2,576.84",Frontline Recruitment Ltd,Neighbourhoods,Waste & Fleet Management,Waste Collection,Agency Staff,21/06/2018,Employee Related Expenditure,86772,NEIGHBOURHOODS
"2,550.00",Axess Systems Ltd,Capital Expenditure,Transformation & Innovation,Ict Replacement Programme,Computer Hardware,25/04/2018,Supplies & Services,85276,CAPITAL
"2,540.20",Zurich Municipal,Finance & Corporate Services,Financial Services,Main Premiums,Miscellaneous Insurances,11/05/2018,Supplies & Services,84821,FINANCE & CORPORATE SERVICES
"2,533.00",Nottinghamshire County Council,Finance & Corporate Services,"Performance, Repn & Comms",Performance And Reputation,External Printing,29/06/2018,Supplies & Services,86790,FINANCE & CORPORATE SERVICES
"2,525.00",Dolphin Mobility East Mids Ltd,Capital Expenditure,Neighbourhoods,Disabled Facilities Grant,Grants,21/06/2018,Supplies & Services,86771,CAPITAL
"2,520.18",British Gas Business,Neighbourhoods,Waste & Fleet Management,Depot,Electricity,25/04/2018,Premises Related Expenditure,85055,NEIGHBOURHOODS
"2,500.00",Peter Brett Associates Llp,Communities,Planning & Growth,Development Control,Legal & Professional Services,15/06/2018,Supplies & Services,85563,COMMUNITIES
"2,500.00",Peter Brett Associates Llp,Communities,Planning & Growth,Development Control,Legal & Professional Services,26/06/2018,Supplies & Services,86822,COMMUNITIES
"2,385.47",Royal Mail Group Ltd,Transformation,Bsu,Central Mail,Postages,08/06/2018,Supplies & Services,86224,TRANSFORMATION
"2,378.24",Frontline Recruitment Ltd,Neighbourhoods,Waste & Fleet Management,Waste Collection,Agency Staff,25/04/2018,Employee Related Expenditure,85247,NEIGHBOURHOODS
"2,372.42",Zurich Municipal,Finance & Corporate Services,Financial Services,Main Premiums,Miscellaneous Insurances,06/04/2018,Supplies & Services,84413,FINANCE & CORPORATE SERVICES
"2,354.87",Water Plus,Neighbourhoods,Waste & Fleet Management,Depot,Water Charges,15/05/2018,Premises Related Expenditure,85957,NEIGHBOURHOODS
"2,348.90",Ghm Planning Limited,Communities,Planning & Growth,Development Control,Agency Staff,04/06/2018,Employee Related Expenditure,86141,COMMUNITIES
"2,334.60",Ghm Planning Limited,Communities,Planning & Growth,Development Control,Agency Staff,19/04/2018,Employee Related Expenditure,84753,COMMUNITIES
"2,307.95",Ghm Planning Limited,Communities,Planning & Growth,Development Control,Agency Staff,19/04/2018,Employee Related Expenditure,84754,COMMUNITIES
"2,250.00",Penna Plc,Finance & Corporate Services,Legal,Legal Services,Interview Expenses,19/06/2018,Employee Related Expenditure,86459,FINANCE & CORPORATE SERVICES
"2,209.00",Obam Lift Services Ltd,Capital Expenditure,Neighbourhoods,Disabled Facilities Grant,Grants,21/06/2018,Supplies & Services,86930,CAPITAL
"2,208.00",Hotline Group Ltd,Transformation,Property Services,Bingham Market Stalls,Advertising,04/05/2018,Supplies & Services,85079,TRANSFORMATION
"2,202.34",Freeth Cartwright Llp,Transformation,Property Services,Land Holdings,Legal & Professional Services,13/04/2018,Supplies & Services,84562,TRANSFORMATION
"2,202.34",Freeth Cartwright Llp,Transformation,Property Services,Land Holdings,Legal & Professional Services,25/04/2018,Supplies & Services,85240,TRANSFORMATION
"2,162.89",Royal Mail Group Ltd,Transformation,Bsu,Central Mail,Postages,04/05/2018,Supplies & Services,85094,TRANSFORMATION
"2,150.94",Vodafone Limited,Transformation,Ict,It Rechargeable Costs,Maintenance Contracts - S&S,04/05/2018,Supplies & Services,84784,TRANSFORMATION
"2,132.72",Royal Mail Group Ltd,Transformation,Bsu,Central Mail,Postages,15/06/2018,Supplies & Services,86407,TRANSFORMATION
"2,129.20",Platinum Street Lighting Solutions,Communities,Community Development,Gresham,Responsive Works - Buildings,19/06/2018,Premises Related Expenditure,86599,COMMUNITIES
"2,127.50",Frontline Recruitment Ltd,Neighbourhoods,Waste & Fleet Management,Waste Collection,Agency Staff,04/05/2018,Employee Related Expenditure,85470,NEIGHBOURHOODS
"2,125.00",Badenoch & Clark,Finance & Corporate Services,Financial Services,Financial Services,Agency Staff,19/06/2018,Employee Related Expenditure,86623,FINANCE & CORPORATE SERVICES
"2,119.34",Streetwise Environmental Ltd,Communities,Community Development,Parks & Playing Fields-Gen,Responsive Works - Buildings,27/04/2018,Premises Related Expenditure,85245,COMMUNITIES
"2,115.00",Ludlow Hill Mot Centre,Neighbourhoods,Environmental Health,Hackney Carriage/Private Hire,Legal & Professional Services,19/06/2018,Supplies & Services,86625,NEIGHBOURHOODS
"2,100.88",Crimson Fire Risk Services Ltd,Capital Expenditure,Transformation & Innovation,Cotgrave Masterplan,Contractors-Third Party,08/06/2018,Third Party Payments,86392,CAPITAL
"2,100.00",Derbyshire County Council,Communities,Community Development,Environmental Promotion,Legal & Professional Services,11/05/2018,Supplies & Services,85806,COMMUNITIES
"2,075.09",Royal Mail Group Ltd,Transformation,Bsu,Central Mail,Postages,04/06/2018,Supplies & Services,86041,TRANSFORMATION
"2,069.27",Vertiv Infrastructure Limited,Transformation,Ict,It Rechargeable Costs,Maintenance Contracts - S&S,29/06/2018,Supplies & Services,86800,TRANSFORMATION
"2,069.27",Vertiv Infrastructure Limited,Transformation,Ict,It Rechargeable Costs,Maintenance Contracts - S&S,29/06/2018,Supplies & Services,86951,TRANSFORMATION
"2,033.00",West Leake Parish Meeting,Collection Fund,Parishes,Parish Councils,Precept Paid,25/04/2018,Collection Fund Accounts,84958,FINANCE & CORPORATE SERVICES
"2,025.00",Badenoch & Clark,Finance & Corporate Services,Financial Services,Financial Services,Agency Staff,06/04/2018,Employee Related Expenditure,84546,FINANCE & CORPORATE SERVICES
"2,025.00",Badenoch & Clark,Finance & Corporate Services,Financial Services,Financial Services,Agency Staff,18/04/2018,Employee Related Expenditure,84980,FINANCE & CORPORATE SERVICES
"2,025.00",Badenoch & Clark,Finance & Corporate Services,Financial Services,Financial Services,Agency Staff,25/04/2018,Employee Related Expenditure,85236,FINANCE & CORPORATE SERVICES
"2,025.00",Badenoch & Clark,Finance & Corporate Services,Financial Services,Financial Services,Agency Staff,04/05/2018,Employee Related Expenditure,85287,FINANCE & CORPORATE SERVICES
"2,025.00",Badenoch & Clark,Finance & Corporate Services,Financial Services,Financial Services,Agency Staff,04/05/2018,Employee Related Expenditure,85556,FINANCE & CORPORATE SERVICES
"2,025.00",Badenoch & Clark,Finance & Corporate Services,Financial Services,Financial Services,Agency Staff,21/05/2018,Employee Related Expenditure,86055,FINANCE & CORPORATE SERVICES
"2,025.00",Badenoch & Clark,Finance & Corporate Services,Financial Services,Financial Services,Agency Staff,08/06/2018,Employee Related Expenditure,86395,FINANCE & CORPORATE SERVICES
"2,025.00",Badenoch & Clark,Finance & Corporate Services,Financial Services,Financial Services,Agency Staff,21/06/2018,Employee Related Expenditure,86838,FINANCE & CORPORATE SERVICES
"2,025.00",Badenoch & Clark,Finance & Corporate Services,Financial Services,Financial Services,Agency Staff,26/06/2018,Employee Related Expenditure,87086,FINANCE & CORPORATE SERVICES
"2,023.24",Frontline Recruitment Ltd,Neighbourhoods,Waste & Fleet Management,Waste Collection,Agency Staff,09/05/2018,Employee Related Expenditure,85654,NEIGHBOURHOODS
"2,010.00",Sutton Bonington Village Hall Committee,Capital Expenditure,Communties,Capital Grant Funding,Grants,04/05/2018,Supplies & Services,85254,CAPITAL
"2,000.00",Bentley Project Management,Capital Expenditure,Transformation & Innovation,Cotgrave Masterplan,Legal & Professional Services,19/04/2018,Supplies & Services,84705,CAPITAL
"2,000.00",Bentley Project Management,Capital Expenditure,Transformation & Innovation,Cotgrave Masterplan,Legal & Professional Services,18/05/2018,Supplies & Services,85780,CAPITAL
"2,000.00",Bentley Project Management,Capital Expenditure,Transformation & Innovation,Cotgrave Masterplan,Legal & Professional Services,19/06/2018,Supplies & Services,86412,CAPITAL
"2,000.00",Box Property Consultants Ltd,Capital Expenditure,Transformation & Innovation,Cotgrave Masterplan,Legal & Professional Services,04/05/2018,Supplies & Services,85546,CAPITAL
"2,000.00",Cp Viability Ltd,Communities,Planning & Growth,Development Control,Legal & Professional Services,28/06/2018,Supplies & Services,86788,COMMUNITIES
"2,000.00",Nuthall Electrical Services Ltd,Communities,Community Development,Gresham,Planned Maintenance Recharge,25/04/2018,Supplies & Services,84853,COMMUNITIES
"2,000.00",Rushcliffe Business Partnership,Communities,Community Development,Community Development,Grants,09/05/2018,Supplies & Services,85282,COMMUNITIES
"1,970.90",Kopin Software Limited,Transformation,Property Services,The Point,Service Charges,25/04/2018,Income,85036,TRANSFORMATION
"1,935.00",Ludlow Hill Mot Centre,Neighbourhoods,Environmental Health,Hackney Carriage/Private Hire,Legal & Professional Services,04/05/2018,Supplies & Services,85561,NEIGHBOURHOODS
"1,918.15",Richard Ling & Associates,Communities,Planning & Growth,Development Control,Legal & Professional Services,04/05/2018,Supplies & Services,85565,COMMUNITIES
"1,915.00",Vinshire Plumbing & Heating Limited,Capital Expenditure,Communties,Warm Homes On Prescription,Grants,19/06/2018,Supplies & Services,86876,CAPITAL
"1,902.30",Autoglym,Neighbourhoods,Waste & Fleet Management,Fleet,Maintenance Contracts - Prems,18/05/2018,Premises Related Expenditure,85622,NEIGHBOURHOODS
"1,895.00",Blitz Drainage Limited,Transformation,Property Services,Unit 10 Chapel Lane,Responsive Works - Buildings,08/06/2018,Premises Related Expenditure,86378,NEIGHBOURHOODS
"1,869.81",Nsl Limited,Neighbourhoods,Leisure Contracts & Car Parks,Car Parks,Maintenance Contracts - S&S,18/04/2018,Supplies & Services,84781,FINANCE & CORPORATE SERVICES
"1,856.00",Kpmg Llp,Finance & Corporate Services,Financial Services,Corporate Management,External Audit Fee,01/06/2018,Supplies & Services,84774,FINANCE & CORPORATE SERVICES
"1,848.00",Eurobale Limited,Communities,Planning & Growth,Development Control,Fees & Charges - General,04/06/2018,Income,86056,COMMUNITIES
"1,837.46",British Gas Business,Neighbourhoods,Waste & Fleet Management,Depot,Electricity,24/05/2018,Premises Related Expenditure,85794,NEIGHBOURHOODS
"1,825.00",Matts Monitors Ltd,Neighbourhoods,Environmental Health,Pollution Control,Other Maintenance,04/06/2018,Supplies & Services,85067,NEIGHBOURHOODS
"1,803.00",Vb Marketing Ltd,Communities,Community Development,Community Development,Other Miscellaneous Expenses,25/04/2018,Supplies & Services,84733,COMMUNITIES
"1,801.30",Nottingham City Council,Transformation,Human Resources,Corporate Training,Olas - Nottm City Council,25/04/2018,Third Party Payments,84759,TRANSFORMATION
"1,797.87",Nsl Limited,Neighbourhoods,Leisure Contracts & Car Parks,Car Parks,Maintenance Contracts - S&S,19/06/2018,Supplies & Services,86478,FINANCE & CORPORATE SERVICES
"1,788.00",A R Signs Ltd,Finance & Corporate Services,"Performance, Repn & Comms",Performance And Reputation,External Printing,29/06/2018,Supplies & Services,86798,FINANCE & CORPORATE SERVICES
"1,772.27",Frontline Recruitment Ltd,Neighbourhoods,Waste & Fleet Management,Waste Collection,Agency Staff,04/05/2018,Employee Related Expenditure,84579,NEIGHBOURHOODS
"1,752.95",Nsl Limited,Neighbourhoods,Leisure Contracts & Car Parks,Car Parks,Maintenance Contracts - S&S,24/05/2018,Supplies & Services,85603,FINANCE & CORPORATE SERVICES
"1,750.00",Cipfa Business Limited,Finance & Corporate Services,Financial Services,Financial Services,Subscriptions,04/05/2018,Supplies & Services,85511,FINANCE & CORPORATE SERVICES
"1,750.00",Heb Chartered Surveyors,Capital Expenditure,Transformation & Innovation,Finch Close,Legal & Professional Services,04/05/2018,Supplies & Services,85256,CAPITAL
"1,750.00",Ropewalk Chambers,Communities,Planning & Growth,Development Control,Legal & Professional Services,04/05/2018,Supplies & Services,85076,COMMUNITIES
"1,748.20",Knight Kavanagh And Page Ltd,Capital Expenditure,Neighbourhoods,Blc Enhancements,Legal & Professional Services,25/04/2018,Supplies & Services,84417,CAPITAL
"1,731.59",Lynch Healthcare Ltd,Capital Expenditure,Neighbourhoods,Disabled Facilities Grant,Grants,29/06/2018,Supplies & Services,87148,CAPITAL
"1,714.00",Vinshire Plumbing & Heating Limited,Capital Expenditure,Communties,Warm Homes On Prescription,Grants,04/05/2018,Supplies & Services,85431,CAPITAL
"1,710.00",Prism Medical Uk Ltd,Capital Expenditure,Neighbourhoods,Disabled Facilities Grant,Grants,04/05/2018,Supplies & Services,85574,CAPITAL
"1,709.15",Royal Mail Group Ltd,Transformation,Bsu,Central Mail,Postages,18/05/2018,Supplies & Services,85572,TRANSFORMATION
"1,700.89",Corona Energy Retail 3 Ltd,Neighbourhoods,Waste & Fleet Management,Depot,Gas,24/05/2018,Premises Related Expenditure,86030,NEIGHBOURHOODS
"1,700.00",Badenoch & Clark,Finance & Corporate Services,Financial Services,Financial Services,Agency Staff,19/06/2018,Employee Related Expenditure,86624,FINANCE & CORPORATE SERVICES
"1,700.00",Northgate Information Solutions Uk Ltd,Transformation,Ict,It Rechargeable Costs,Legal & Professional Services,21/06/2018,Supplies & Services,86789,TRANSFORMATION
"1,700.00",Nottingham City Council,Transformation,Human Resources,Human Resources,Employee Advertising,29/06/2018,Employee Related Expenditure,87039,TRANSFORMATION
"1,650.00",Nottinghamshire County Council,Finance & Corporate Services,Emt & Transformation,Executive Management Team,Other Miscellaneous Expenses,04/05/2018,Supplies & Services,85207,FINANCE & CORPORATE SERVICES
"1,640.22",Ee Ltd (Airtime),Transformation,Ict,Telephones,Mobiles,08/06/2018,Supplies & Services,85791,TRANSFORMATION
"1,620.00",Badenoch & Clark,Finance & Corporate Services,Financial Services,Financial Services,Agency Staff,18/04/2018,Employee Related Expenditure,84815,FINANCE & CORPORATE SERVICES
"1,620.00",Badenoch & Clark,Finance & Corporate Services,Financial Services,Financial Services,Agency Staff,18/04/2018,Employee Related Expenditure,84979,FINANCE & CORPORATE SERVICES
"1,620.00",Badenoch & Clark,Finance & Corporate Services,Financial Services,Financial Services,Agency Staff,04/06/2018,Employee Related Expenditure,86262,FINANCE & CORPORATE SERVICES
"1,620.00",Badenoch & Clark,Finance & Corporate Services,Financial Services,Financial Services,Agency Staff,04/06/2018,Employee Related Expenditure,86263,FINANCE & CORPORATE SERVICES
"1,620.00",Badenoch & Clark,Finance & Corporate Services,Financial Services,Financial Services,Agency Staff,19/06/2018,Employee Related Expenditure,86621,FINANCE & CORPORATE SERVICES
"1,616.31",Ee Ltd (Airtime),Transformation,Ict,Telephones,Mobiles,25/04/2018,Supplies & Services,84823,TRANSFORMATION
"1,611.75",Severn Trent Water,Neighbourhoods,Waste & Fleet Management,Depot,Water Charges,21/06/2018,Premises Related Expenditure,85610,NEIGHBOURHOODS
"1,611.75",Water Plus,Neighbourhoods,Waste & Fleet Management,Depot,Water Charges,25/04/2018,Premises Related Expenditure,85160,NEIGHBOURHOODS
"1,608.75",Medigold Health Consultancy Ltd,Transformation,Human Resources,Human Resources,Legal & Professional Services,25/04/2018,Supplies & Services,84065,TRANSFORMATION
"1,600.00",Sibthorpe Parish Meeting,Collection Fund,Parishes,Parish Councils,Precept Paid,25/04/2018,Collection Fund Accounts,84949,FINANCE & CORPORATE SERVICES
"1,580.00",Grapefruit Creative,Finance & Corporate Services,"Performance, Repn & Comms",Performance And Reputation,Legal & Professional Services,08/06/2018,Supplies & Services,86566,FINANCE & CORPORATE SERVICES
"1,578.42",Abacus Lighting Limited,Communities,Community Development,Gresham,Service Maintenance Contracts,13/04/2018,Premises Related Expenditure,84425,COMMUNITIES
"1,575.00",Ludlow Hill Mot Centre,Neighbourhoods,Environmental Health,Hackney Carriage/Private Hire,Legal & Professional Services,27/04/2018,Supplies & Services,84742,NEIGHBOURHOODS
"1,567.58",Phoenix Software,Transformation,Ict,It Rechargeable Costs,Maintenance Contracts - S&S,25/04/2018,Supplies & Services,84820,TRANSFORMATION
"1,550.00",Commodore (Nottingham) Ltd,Neighbourhoods,Strategic Housing,Homeless B&B,Housing-Emergency Accommodn,25/04/2018,Supplies & Services,85253,NEIGHBOURHOODS
"1,513.00",P.Waller (Decorators) Ltd,Neighbourhoods,Strategic Housing,Hostel Hound Lodge,Planned Maintenance Recharge,15/06/2018,Supplies & Services,86122,NEIGHBOURHOODS
"1,506.31",Electoral Reform Services,Finance & Corporate Services,Democratic Services,Electoral Registration,External Printing,19/04/2018,Supplies & Services,84761,FINANCE & CORPORATE SERVICES
"1,500.00",Bsp Consulting,Capital Expenditure,Transformation & Innovation,Cotgrave Masterplan,Legal & Professional Services,13/04/2018,Supplies & Services,84542,CAPITAL
"1,500.00",Bsp Consulting,Capital Expenditure,Transformation & Innovation,Cotgrave Masterplan,Legal & Professional Services,11/05/2018,Supplies & Services,85543,CAPITAL
"1,500.00",Bsp Consulting,Capital Expenditure,Transformation & Innovation,Cotgrave Masterplan,Legal & Professional Services,08/06/2018,Supplies & Services,86327,CAPITAL
"1,500.00",Select Forms Limited,Finance & Corporate Services,Financial Services,Financial Services,External Printing,18/05/2018,Supplies & Services,85628,FINANCE & CORPORATE SERVICES
"1,480.60",Severn Trent Searches,Capital Expenditure,Transformation & Innovation,Finch Close,Legal & Professional Services,13/04/2018,Supplies & Services,84855,CAPITAL
"1,454.02",Brian Cooper Architect,Capital Expenditure,Neighbourhoods,Discretionary Top-Ups Dfgs,Grants,04/05/2018,Supplies & Services,85096,CAPITAL
"1,453.07",Edf Energy,Neighbourhoods,Leisure Contracts & Car Parks,Car Parks,Electricity,24/05/2018,Premises Related Expenditure,85993,FINANCE & CORPORATE SERVICES
"1,450.00",Ep Consulting Building Services Engineers,Capital Expenditure,Transformation & Innovation,Cotgrave Masterplan,Legal & Professional Services,06/04/2018,Supplies & Services,84421,CAPITAL
"1,444.67",Co-Operative Funeral Care,Neighbourhoods,Environmental Health,Public Health,Welfare Burials,06/04/2018,Supplies & Services,84243,NEIGHBOURHOODS
"1,442.00",Prestige Air Technology Ltd,Transformation,Property Services,Arena Civic Centre,Service Maintenance Contracts,19/06/2018,Premises Related Expenditure,86597,TRANSFORMATION
"1,440.00",Ludlow Hill Mot Centre,Neighbourhoods,Environmental Health,Hackney Carriage/Private Hire,Legal & Professional Services,04/05/2018,Supplies & Services,85558,NEIGHBOURHOODS
"1,430.65",L R Mees Ltd,Transformation,Economic Regeneration,Economic Development,Grants,04/05/2018,Supplies & Services,84834,TRANSFORMATION
"1,425.00",Idox Software Limited,Transformation,Ict,It Rechargeable Costs,Software,19/06/2018,Supplies & Services,81323,TRANSFORMATION
"1,401.54",Water Plus,Neighbourhoods,Waste & Fleet Management,Depot,Water Charges,08/06/2018,Premises Related Expenditure,86639,NEIGHBOURHOODS
"1,400.00",Blade Runners Commercial Ltd,Transformation,Property Services,Arena Civic Centre,Contract Cleaning,15/06/2018,Premises Related Expenditure,86434,TRANSFORMATION
"1,400.00",Broxtowe Borough Council,Neighbourhoods,Leisure Contracts & Car Parks,Car Parks,Other Equipment/Materials,04/06/2018,Supplies & Services,86427,FINANCE & CORPORATE SERVICES
"1,395.00",Ludlow Hill Mot Centre,Neighbourhoods,Environmental Health,Hackney Carriage/Private Hire,Contractors-Transport,13/04/2018,Transport Related Expenditure,84588,NEIGHBOURHOODS
"1,390.04",Xerox (Uk) Limited,Transformation,Ict,Photocopiers,Rental & Copy Charges,04/05/2018,Supplies & Services,84971,TRANSFORMATION
"1,380.00",Havas People Ltd,Communities,Planning & Growth,Development Control,Employee Advertising,11/05/2018,Employee Related Expenditure,85557,COMMUNITIES
"1,380.00",Nottinghamshire County Council,Communities,Local Development Framework,Land Charges,Other Services,04/05/2018,Supplies & Services,85544,COMMUNITIES
"1,356.93",A.R.G (Mansfield) Ltd,Capital Expenditure,Neighbourhoods,Egc Upgrade Facilites,Contractors-Third Party,04/06/2018,Third Party Payments,86119,CAPITAL
"1,321.65",Do Not Use See Reach Publishing,Finance & Corporate Services,Revenues & Benefits,Council Tax,Legal & Professional Services,19/04/2018,Supplies & Services,84777,FINANCE & CORPORATE SERVICES
"1,290.00",Nuthall Electrical Services Ltd,Transformation,Property Services,Arena Civic Centre,Planned Maintenance Recharge,15/06/2018,Supplies & Services,86350,TRANSFORMATION
"1,275.21",Prism Medical Uk Ltd,Capital Expenditure,Neighbourhoods,Disabled Facilities Grant,Grants,04/06/2018,Supplies & Services,86127,CAPITAL
"1,275.00",Badenoch & Clark,Finance & Corporate Services,Financial Services,Financial Services,Agency Staff,18/05/2018,Employee Related Expenditure,85878,FINANCE & CORPORATE SERVICES
"1,275.00",Badenoch & Clark,Finance & Corporate Services,Financial Services,Financial Services,Agency Staff,21/05/2018,Employee Related Expenditure,86054,FINANCE & CORPORATE SERVICES
"1,275.00",Badenoch & Clark,Finance & Corporate Services,Financial Services,Financial Services,Agency Staff,21/05/2018,Employee Related Expenditure,86126,FINANCE & CORPORATE SERVICES
"1,275.00",Badenoch & Clark,Finance & Corporate Services,Financial Services,Financial Services,Agency Staff,26/06/2018,Employee Related Expenditure,87085,FINANCE & CORPORATE SERVICES
"1,272.94",Nottinghamshire County Council,Neighbourhoods,Leisure Contracts & Car Parks,Leisure Management Contract,Grounds Maintenance,24/05/2018,Premises Related Expenditure,86220,FINANCE & CORPORATE SERVICES
"1,268.56",Frontline Recruitment Ltd,Neighbourhoods,Waste & Fleet Management,Waste Collection,Agency Staff,21/05/2018,Employee Related Expenditure,86128,NEIGHBOURHOODS
"1,260.00",Parkwood Community Leisure,Transformation,Bsu,Business Support Unit,Legal & Professional Services,04/05/2018,Supplies & Services,84608,TRANSFORMATION
"1,260.00",Parkwood Community Leisure,Transformation,Bsu,Business Support Unit,Legal & Professional Services,15/06/2018,Supplies & Services,86385,TRANSFORMATION
"1,250.00",Peter Brett Associates,Communities,Planning & Growth,Development Control,Legal & Professional Services,25/04/2018,Supplies & Services,84772,COMMUNITIES
"1,247.98",Hargreave Hale,Transformation,Property Services,The Point,Service Charges,25/04/2018,Income,84975,TRANSFORMATION
"1,237.17",Havas People Ltd,Transformation,Human Resources,Human Resources,Employee Advertising,25/04/2018,Employee Related Expenditure,84729,TRANSFORMATION
"1,231.50",Freeth Cartwright Llp,Transformation,Property Services,Bardon 22`,Legal & Professional Services,06/04/2018,Supplies & Services,84002,TRANSFORMATION
"1,230.00",Dave Ford Ltd,Capital Expenditure,Transformation & Innovation,Cotgrave Masterplan,Legal & Professional Services,15/06/2018,Supplies & Services,86778,CAPITAL
"1,219.83",Calor Gas Limited,Communities,Community Development,West Park,Gas,25/04/2018,Premises Related Expenditure,84387,COMMUNITIES
"1,216.48",Royal Mail Group Ltd,Transformation,Bsu,Central Mail,Postages,09/05/2018,Supplies & Services,85443,TRANSFORMATION
"1,212.50",Ep Consulting Building Services Engineers,Transformation,Economic Regeneration,West Bridgford Town Centre,Responsive Works - Buildings,06/04/2018,Premises Related Expenditure,84378,TRANSFORMATION
"1,210.43",British Gas Business,Neighbourhoods,Waste & Fleet Management,Depot,Gas,08/06/2018,Premises Related Expenditure,86635,NEIGHBOURHOODS
"1,205.00",Zurich Municipal,Finance & Corporate Services,Financial Services,Liability Claims,Excesses Paid,19/06/2018,Other Control/Suspense A/Cs,86644,FINANCE & CORPORATE SERVICES
"1,200.00",Parkwood Community Leisure,Transformation,Bsu,Business Support Unit,Legal & Professional Services,11/05/2018,Supplies & Services,85448,TRANSFORMATION
"1,199.00",Idapt Llp,Neighbourhoods,Environmental Health,Housing Standards,Subscriptions,04/05/2018,Supplies & Services,84586,NEIGHBOURHOODS
"1,197.00",Bluetownonline Limited,Transformation,Human Resources,Human Resources,Employee Advertising,25/04/2018,Employee Related Expenditure,85038,TRANSFORMATION
"1,196.55",Brian Cooper Architect,Capital Expenditure,Neighbourhoods,Discretionary Top-Ups Dfgs,Grants,04/06/2018,Supplies & Services,86225,CAPITAL
"1,176.00",Mrs Michelle Lang,Transformation,Economic Regeneration,Economic Development,Grants,25/04/2018,Supplies & Services,84827,TRANSFORMATION
"1,170.00",Ludlow Hill Mot Centre,Neighbourhoods,Environmental Health,Hackney Carriage/Private Hire,Contractors-Transport,13/04/2018,Transport Related Expenditure,84589,NEIGHBOURHOODS
"1,164.90",Streetwise Environmental Ltd,Neighbourhoods,Waste & Fleet Management,Street Cleansing,Contractors-Supplies & Servs,09/05/2018,Supplies & Services,85512,NEIGHBOURHOODS
"1,164.47",British Gas Business,Neighbourhoods,Waste & Fleet Management,Depot,Electricity,06/04/2018,Premises Related Expenditure,84385,NEIGHBOURHOODS
"1,160.60",Svenska Handlesbanken Ab (Publ),Transformation,Property Services,The Point,Service Charges,25/04/2018,Income,85037,TRANSFORMATION
"1,158.05",Xerox (Uk) Limited,Transformation,Ict,Photocopiers,Rental & Copy Charges,04/05/2018,Supplies & Services,84969,TRANSFORMATION
"1,152.00",Parkwood Community Leisure,Neighbourhoods,Leisure Contracts & Car Parks,Leisure Management Contract,D.B.S Checks - Employees,04/05/2018,Employee Related Expenditure,84607,FINANCE & CORPORATE SERVICES
"1,150.00",Events Of Excellence,Communities,Community Development,Arts,Projects & Activities,13/06/2018,Supplies & Services,86573,COMMUNITIES
"1,128.74",Maltby & Company,Transformation,Property Services,Street Nameplates & Pub. Signs,Contractors-Supplies & Servs,25/04/2018,Supplies & Services,84693,TRANSFORMATION
"1,120.50",Parkwood Community Leisure,Transformation,Property Services,Arena Civic Centre,Other Miscellaneous Expenses,29/06/2018,Supplies & Services,86743,TRANSFORMATION
"1,117.50",Royal Mail Group Ltd,Transformation,Bsu,Central Mail,Postages,04/06/2018,Supplies & Services,85909,TRANSFORMATION
"1,111.51",Water Plus,Neighbourhoods,Strategic Housing,Hostel Hound Lodge,Water Charges,29/06/2018,Premises Related Expenditure,87242,NEIGHBOURHOODS
"1,108.02",Calor Gas Limited,Communities,Community Development,West Park,Gas,08/06/2018,Premises Related Expenditure,85637,COMMUNITIES
"1,085.00",Northern Hosuing Consortium Limited,Neighbourhoods,Strategic Housing,Choice Based Lettings,Subscriptions,27/04/2018,Supplies & Services,85151,NEIGHBOURHOODS
"1,071.73",Ccs Media,Capital Expenditure,Transformation & Innovation,Ict Replacement Programme,Computer Hardware,11/05/2018,Supplies & Services,85455,CAPITAL
"1,064.83",Co-Operative Funeral Care,Neighbourhoods,Environmental Health,Public Health,Welfare Burials,13/04/2018,Supplies & Services,84377,NEIGHBOURHOODS
"1,064.83",Co-Operative Funeral Care,Neighbourhoods,Environmental Health,Public Health,Welfare Burials,21/05/2018,Supplies & Services,85548,NEIGHBOURHOODS
"1,045.00",Advanced Business Solutions,Capital Expenditure,Transformation & Innovation,Collaborative Planning,Software,18/04/2018,Supplies & Services,84756,CAPITAL
"1,045.00",Freeth Cartwright Llp,Capital Expenditure,Transformation & Innovation,Cotgrave Masterplan,Legal & Professional Services,04/05/2018,Supplies & Services,85156,CAPITAL
"1,032.00",Freight Transport Assoc,Neighbourhoods,Waste & Fleet Management,Fleet,Subscriptions,15/05/2018,Supplies & Services,85609,NEIGHBOURHOODS
"1,010.95",Havas People Ltd,Finance & Corporate Services,Legal,Legal Services,Employee Advertising,11/05/2018,Employee Related Expenditure,84567,FINANCE & CORPORATE SERVICES
"1,000.00",Chevin Computer Systems Ltd,Neighbourhoods,Waste & Fleet Management,Fleet,Licences,19/06/2018,Supplies & Services,86617,NEIGHBOURHOODS
"1,000.00",Dta Electrical,Capital Expenditure,Neighbourhoods,Egc Upgrade Facilites,Contractors-Third Party,24/05/2018,Third Party Payments,86048,CAPITAL
"1,000.00",Rhe Global,Neighbourhoods,Environmental Health,Housing Standards,Subscriptions,27/04/2018,Supplies & Services,84553,NEIGHBOURHOODS
"1,000.00",Ropewalk Chambers,Communities,Planning & Growth,Development Control,Legal & Professional Services,04/05/2018,Supplies & Services,84563,COMMUNITIES
999,Ninesharp Ltd,Transformation,Ict,It,Agency Staff,08/06/2018,Employee Related Expenditure,86337,TRANSFORMATION
990,Zurich Municipal,Finance & Corporate Services,Financial Services,Liability Claims,Excesses Paid,06/04/2018,Other Control/Suspense A/Cs,84117,FINANCE & CORPORATE SERVICES
974.33,The Stroke Association,Transformation,Property Services,The Point,Service Charges,25/04/2018,Income,84974,TRANSFORMATION
969.44,Havas People Ltd,Communities,Community Development,Facilities Team,Employee Advertising,04/05/2018,Employee Related Expenditure,85063,COMMUNITIES
963.93,Havas People Ltd,Neighbourhoods,Waste & Fleet Management,Depot,Employee Advertising,08/06/2018,Employee Related Expenditure,86360,NEIGHBOURHOODS
957.55,British Gas Business,Neighbourhoods,Waste & Fleet Management,Depot,Electricity,18/05/2018,Premises Related Expenditure,85586,NEIGHBOURHOODS
951.03,British Gas Business,Communities,Community Development,Gresham,Electricity,25/04/2018,Premises Related Expenditure,84350,COMMUNITIES
950,Dales Sports Surfaces Ltd,Transformation,Property Services,Arena Civic Centre,Other Miscellaneous Expenses,18/05/2018,Supplies & Services,85547,TRANSFORMATION
950,Ep Consulting Building Services Engineers,Capital Expenditure,Transformation & Innovation,Cotgrave Masterplan,Legal & Professional Services,19/04/2018,Supplies & Services,84844,CAPITAL
931.14,The Copyright Licensing Agency Limited,Finance & Corporate Services,Legal,Legal Services,Licences,27/04/2018,Supplies & Services,84869,FINANCE & CORPORATE SERVICES
930,Fred Brown Car Repairs Limited,Neighbourhoods,Environmental Health,Hackney Carriage/Private Hire,Contractors-Transport,19/04/2018,Transport Related Expenditure,84819,NEIGHBOURHOODS
927.8,Broxtowe Borough Council,Neighbourhoods,Leisure Contracts & Car Parks,Car Parks,Other Equipment/Materials,19/04/2018,Supplies & Services,84793,FINANCE & CORPORATE SERVICES
920,Hopkins Solicitors,Rechargeable Accounts,Suspense Accounts,Suspense No Code,Returned Creditors,21/06/2018,Returned Creditors,86739,FINANCE & CORPORATE SERVICES
919.13,Adt Fire And Security Plc,Communities,Community Development,Rushcliffe Country Park,Maintenance Contracts - S&S,26/06/2018,Supplies & Services,86730,COMMUNITIES
900,Fred Brown Car Repairs Limited,Neighbourhoods,Environmental Health,Hackney Carriage/Private Hire,Contractors-Transport,08/06/2018,Transport Related Expenditure,86474,NEIGHBOURHOODS
897.33,Water Plus,Neighbourhoods,Waste & Fleet Management,Depot,Water Charges,08/06/2018,Premises Related Expenditure,86367,NEIGHBOURHOODS
895.7,Osborne Richardson,Neighbourhoods,Environmental Health,Food Hygiene,Contractors-Supplies & Servs,18/04/2018,Supplies & Services,84782,NEIGHBOURHOODS
888.74,Frontline Recruitment Ltd,Neighbourhoods,Waste & Fleet Management,Waste Collection,Agency Staff,04/05/2018,Employee Related Expenditure,84990,NEIGHBOURHOODS
886.7,Nottingham City Council,Transformation,Human Resources,Corporate Training,Legal & Professional Services,06/04/2018,Supplies & Services,80695,TRANSFORMATION
882,Posh Nosh,Transformation,Human Resources,Human Resources,Hospitality,26/06/2018,Supplies & Services,86946,TRANSFORMATION
880,Grapefruit Creative,Finance & Corporate Services,"Performance, Repn & Comms",Performance And Reputation,Legal & Professional Services,08/06/2018,Supplies & Services,86565,FINANCE & CORPORATE SERVICES
866,Streetwise Environmental Ltd,Communities,Community Development,Environmental Promotion,Legal & Professional Services,13/04/2018,Supplies & Services,84156,COMMUNITIES
864.9,Carl Dean Associates Limited,Capital Expenditure,Transformation & Innovation,Multi Service Centre,Legal & Professional Services,13/04/2018,Supplies & Services,84704,CAPITAL
864.9,Carl Dean Associates Limited,Capital Expenditure,Transformation & Innovation,Multi Service Centre,Legal & Professional Services,11/05/2018,Supplies & Services,85515,CAPITAL
864.9,Carl Dean Associates Limited,Capital Expenditure,Transformation & Innovation,Multi Service Centre,Legal & Professional Services,15/06/2018,Supplies & Services,86374,CAPITAL
850,Badenoch & Clark,Finance & Corporate Services,Financial Services,Financial Services,Agency Staff,06/04/2018,Employee Related Expenditure,84545,FINANCE & CORPORATE SERVICES
850,Badenoch & Clark,Finance & Corporate Services,Financial Services,Financial Services,Agency Staff,06/04/2018,Employee Related Expenditure,84547,FINANCE & CORPORATE SERVICES
850,Badenoch & Clark,Finance & Corporate Services,Financial Services,Financial Services,Agency Staff,06/04/2018,Employee Related Expenditure,84548,FINANCE & CORPORATE SERVICES
850,Badenoch & Clark,Finance & Corporate Services,Financial Services,Financial Services,Agency Staff,18/04/2018,Employee Related Expenditure,84816,FINANCE & CORPORATE SERVICES
850,Badenoch & Clark,Finance & Corporate Services,Financial Services,Financial Services,Agency Staff,18/04/2018,Employee Related Expenditure,84978,FINANCE & CORPORATE SERVICES
850,Badenoch & Clark,Finance & Corporate Services,Financial Services,Financial Services,Agency Staff,25/04/2018,Employee Related Expenditure,85235,FINANCE & CORPORATE SERVICES
850,Badenoch & Clark,Finance & Corporate Services,Financial Services,Financial Services,Agency Staff,04/05/2018,Employee Related Expenditure,85286,FINANCE & CORPORATE SERVICES
846,University Of Birmingham,Transformation,Human Resources,Corporate Training,Training Expenses,19/04/2018,Employee Related Expenditure,84599,TRANSFORMATION
845,Streetwise Environmental Ltd,Transformation,Property Services,Open Spaces & Footpaths,Responsive Works - Buildings,18/04/2018,Premises Related Expenditure,84985,TRANSFORMATION
833.56,Print Image Network Ltd,Finance & Corporate Services,Democratic Services,Electoral Registration,External Printing,18/05/2018,Supplies & Services,85653,FINANCE & CORPORATE SERVICES
818,Midland Regional Printers Ltd,Finance & Corporate Services,"Performance, Repn & Comms",Performance And Reputation,External Printing,19/06/2018,Supplies & Services,86388,FINANCE & CORPORATE SERVICES
813.6,Do Not Use See Reach Publishing,Communities,Planning & Growth,Development Control,Advertising,19/06/2018,Supplies & Services,86568,COMMUNITIES
810,Fred Brown Car Repairs Limited,Neighbourhoods,Environmental Health,Hackney Carriage/Private Hire,Legal & Professional Services,15/05/2018,Supplies & Services,85633,NEIGHBOURHOODS
805.36,Ndj Ltd T/A Belton Construction,Capital Expenditure,Neighbourhoods,Discretionary Top-Ups Dfgs,Grants,25/04/2018,Supplies & Services,85095,CAPITAL
802.6,A.T Alarms,Transformation,Property Services,"Chapel Lane, Bingham",Responsive Works - Buildings,06/04/2018,Premises Related Expenditure,84326,TRANSFORMATION
800,Aldor Marketing Ltd,Communities,Community Development,Young,Other Miscellaneous Expenses,04/06/2018,Supplies & Services,86038,COMMUNITIES
800,Newark And Sherwood D C,Transformation,Emergency Planning,Emergency Planning,Other Services,25/04/2018,Supplies & Services,84866,TRANSFORMATION
798.57,Frontline Recruitment Ltd,Neighbourhoods,Waste & Fleet Management,Waste Collection,Agency Staff,04/05/2018,Employee Related Expenditure,84785,NEIGHBOURHOODS
792.32,Parkwood Community Leisure,Transformation,Property Services,Arena Civic Centre,Water Charges,06/04/2018,Premises Related Expenditure,83515,TRANSFORMATION
792,A R Signs Ltd,Finance & Corporate Services,"Performance, Repn & Comms",Performance And Reputation,External Printing,09/05/2018,Supplies & Services,85270,FINANCE & CORPORATE SERVICES
791.49,Streetwise Environmental Ltd,Transformation,Property Services,Open Spaces & Footpaths,Responsive Works - Buildings,15/05/2018,Premises Related Expenditure,84840,TRANSFORMATION
791.47,Driver Hire Nottingham,Neighbourhoods,Waste & Fleet Management,Waste Collection,Agency Staff,08/06/2018,Employee Related Expenditure,86476,NEIGHBOURHOODS
788.38,Water Plus,Neighbourhoods,Waste & Fleet Management,Depot,Water Charges,24/05/2018,Premises Related Expenditure,85634,NEIGHBOURHOODS
787.5,Do Not Use See Reach Publishing,Communities,Planning & Growth,Development Control,Advertising,18/05/2018,Supplies & Services,85598,COMMUNITIES
787.35,Osborne Richardson,Neighbourhoods,Environmental Health,Food Hygiene,Contractors-Supplies & Servs,06/04/2018,Supplies & Services,84578,NEIGHBOURHOODS
785,Civil Solutions Uk Limited,Communities,Community Development,West Park,Service Maintenance Contracts,06/04/2018,Premises Related Expenditure,84026,COMMUNITIES
780,Event-X,Finance & Corporate Services,Emt & Transformation,Executive Management Team,Conferences - Employees,19/04/2018,Supplies & Services,84818,FINANCE & CORPORATE SERVICES
777,B W Fire Engineering,Neighbourhoods,Waste & Fleet Management,Depot,Service Maintenance Contracts,04/06/2018,Premises Related Expenditure,85974,NEIGHBOURHOODS
776.42,British Gas Business,Transformation,Property Services,The Point,Electricity,09/05/2018,Premises Related Expenditure,85065,TRANSFORMATION
775,Hopkins Solicitors,Capital Expenditure,Transformation & Innovation,Cotgrave Masterplan,Legal & Professional Services,04/05/2018,Supplies & Services,85513,CAPITAL
768.4,Reach Publishing Services Limited,Communities,Planning & Growth,Development Control,Advertising,04/06/2018,Supplies & Services,86231,COMMUNITIES
765,Lodge Tyre Co.Ltd,Neighbourhoods,Waste & Fleet Management,Glass Recycling & Bring Sites,Tyres,21/06/2018,Transport Related Expenditure,86953,NEIGHBOURHOODS
762.6,Engineering Services Consultancy Limited,Capital Expenditure,Transformation & Innovation,Multi Service Centre,Legal & Professional Services,19/04/2018,Supplies & Services,84541,CAPITAL
762.6,Engineering Services Consultancy Limited,Capital Expenditure,Transformation & Innovation,Multi Service Centre,Legal & Professional Services,24/05/2018,Supplies & Services,85595,CAPITAL
762.6,Engineering Services Consultancy Limited,Capital Expenditure,Transformation & Innovation,Multi Service Centre,Legal & Professional Services,26/06/2018,Supplies & Services,86787,CAPITAL
761.62,Phoenix Software,Transformation,Ict,It Rechargeable Costs,Software,13/04/2018,Supplies & Services,84557,TRANSFORMATION
756.43,Severn Trent Searches,Transformation,Property Services,Land Holdings,Legal & Professional Services,26/06/2018,Supplies & Services,86464,TRANSFORMATION
750,Friends Of Bingham Linear Park,Communities,Community Development,Environmental Promotion,Grants,13/04/2018,Supplies & Services,84336,COMMUNITIES
750,Hex Productions,Finance & Corporate Services,"Performance, Repn & Comms",Performance And Reputation,Legal & Professional Services,19/06/2018,Supplies & Services,86809,FINANCE & CORPORATE SERVICES
750,Miss V Oxby,Communities,Community Development,Environmental Promotion,Grants,25/04/2018,Supplies & Services,84335,COMMUNITIES
750,Nuthall Electrical Services Ltd,Communities,Community Development,Lutterell Hall,Planned Maintenance Recharge,25/04/2018,Supplies & Services,84853,COMMUNITIES
750,Scarrington Parish Meeting,Collection Fund,Parishes,Parish Councils,Precept Paid,25/04/2018,Collection Fund Accounts,85072,FINANCE & CORPORATE SERVICES
748.3,Severn Trent Searches,Transformation,Property Services,Land Holdings,Legal & Professional Services,27/04/2018,Supplies & Services,84749,TRANSFORMATION
747.54,British Gas Business,Communities,Community Development,Gresham,Electricity,25/04/2018,Premises Related Expenditure,85062,COMMUNITIES
744.94,Lyreco,Communities,Community Development,Facilities Team,Cleaning Equipment/Materials,18/05/2018,Supplies & Services,85898,COMMUNITIES
739.75,Corona Energy Retail 3 Ltd,Neighbourhoods,Waste & Fleet Management,Depot,Gas,25/04/2018,Premises Related Expenditure,85210,NEIGHBOURHOODS
734.52,Wallgate Limited,Transformation,Property Services,Parish Run Pub Conveniences,Other Equipment/Materials,04/06/2018,Supplies & Services,85969,TRANSFORMATION
732.23,Streetwise Environmental Ltd,Capital Expenditure,Transformation & Innovation,Cotgrave Masterplan,Legal & Professional Services,19/04/2018,Supplies & Services,84738,CAPITAL
720,Wellbeing Clinic Ltd,Transformation,Human Resources,Human Resources,Legal & Professional Services,15/05/2018,Supplies & Services,80034,TRANSFORMATION
717.38,Royal Mail Group Ltd,Transformation,Bsu,Central Mail,Postages,15/06/2018,Supplies & Services,86405,TRANSFORMATION
715,Westcotes House Ltd,Neighbourhoods,Strategic Housing,Homeless B&B,Housing-Emergency Accommodn,06/04/2018,Supplies & Services,84033,NEIGHBOURHOODS
710.89,Joe'S (Uk) Ltd,Transformation,Property Services,The Point,Responsive Works - Buildings,04/05/2018,Premises Related Expenditure,85230,TRANSFORMATION
710.89,Joe'S (Uk) Ltd,Transformation,Property Services,The Point,Responsive Works - Buildings,04/05/2018,Premises Related Expenditure,85231,TRANSFORMATION
710,Nuthall Electrical Services Ltd,Transformation,Property Services,Parish Run Pub Conveniences,Responsive Works - Buildings,04/05/2018,Premises Related Expenditure,85229,TRANSFORMATION
705,Terberg Matec Uk Limited,Neighbourhoods,Waste & Fleet Management,Fleet,Licences - General,25/04/2018,Transport Related Expenditure,84837,NEIGHBOURHOODS
700,I R Ward,Transformation,Economic Regeneration,Economic Development,Legal & Professional Services,13/04/2018,Supplies & Services,84838,TRANSFORMATION
698.19,Broxtowe Borough Council,Neighbourhoods,Leisure Contracts & Car Parks,Car Parks,Other Equipment/Materials,19/04/2018,Supplies & Services,84601,FINANCE & CORPORATE SERVICES
697.64,Arden Winch & Co Ltd,Neighbourhoods,Waste & Fleet Management,Waste Collection,Protective Clothing/Uniforms,04/06/2018,Supplies & Services,85647,NEIGHBOURHOODS
697,P.Waller (Decorators) Ltd,Neighbourhoods,Strategic Housing,Hostel Hound Lodge,Planned Maintenance Recharge,15/06/2018,Supplies & Services,86180,NEIGHBOURHOODS
696.36,The South Wolds Academy And Sixth Form,Neighbourhoods,Leisure Contracts & Car Parks,Leisure Management Contract,Electricity,04/06/2018,Premises Related Expenditure,86133,FINANCE & CORPORATE SERVICES
693,Do Not Use See Reach Publishing,Communities,Planning & Growth,Development Control,Advertising,19/04/2018,Supplies & Services,84724,COMMUNITIES
684.6,Cotgrave Town Council,Transformation,Economic Regeneration,Cotgrave Precinct,Grounds Maintenance,08/06/2018,Premises Related Expenditure,86188,TRANSFORMATION
679.88,The South Wolds Academy And Sixth Form,Neighbourhoods,Leisure Contracts & Car Parks,Leisure Management Contract,Electricity,04/05/2018,Premises Related Expenditure,85069,FINANCE & CORPORATE SERVICES
672.07,The South Wolds Academy And Sixth Form,Neighbourhoods,Leisure Contracts & Car Parks,Leisure Management Contract,Electricity,04/05/2018,Premises Related Expenditure,84382,FINANCE & CORPORATE SERVICES
667.7,British Gas Business,Communities,Community Development,Alford Road,Gas,25/04/2018,Premises Related Expenditure,84240,COMMUNITIES
650.22,Driver Hire Nottingham,Neighbourhoods,Waste & Fleet Management,Waste Collection,Agency Staff,19/06/2018,Employee Related Expenditure,86927,NEIGHBOURHOODS
650,Framework Housing Association,Finance & Corporate Services,Democratic Services,Members Services,Grants,25/04/2018,Supplies & Services,84556,FINANCE & CORPORATE SERVICES
650,The Treecology Team Ltd,Communities,Community Development,Rushcliffe Country Park,Other Equipment/Materials,06/04/2018,Supplies & Services,84431,COMMUNITIES
647,Notts County Council,Neighbourhoods,Environmental Health,Community Safety,Projects & Activities,19/04/2018,Supplies & Services,84770,NEIGHBOURHOODS
644.32,Do Not Use See Reach Publishing,Communities,Planning & Growth,Development Control,Advertising,19/04/2018,Supplies & Services,84723,COMMUNITIES
644.1,Do Not Use See Reach Publishing,Communities,Planning & Growth,Development Control,Advertising,24/05/2018,Supplies & Services,85870,COMMUNITIES
641.73,Clearwater Technology Ltd,Transformation,Property Services,Arena Civic Centre,Service Maintenance Contracts,06/04/2018,Premises Related Expenditure,84351,TRANSFORMATION
641.36,Xerox (Uk) Limited,Transformation,Ict,Photocopiers,Rental & Copy Charges,04/05/2018,Supplies & Services,84970,TRANSFORMATION
637.5,Badenoch & Clark,Finance & Corporate Services,Financial Services,Financial Services,Agency Staff,04/06/2018,Employee Related Expenditure,86261,FINANCE & CORPORATE SERVICES
636.47,Nottinghamshire County Council,Neighbourhoods,Leisure Contracts & Car Parks,Leisure Management Contract,Grounds Maintenance,08/06/2018,Premises Related Expenditure,86470,FINANCE & CORPORATE SERVICES
634,Saxondale Kennels,Neighbourhoods,Environmental Health,Dog Control,Legal & Professional Services,04/05/2018,Supplies & Services,84787,NEIGHBOURHOODS
632.8,Reach Publishing Services Limited,Communities,Planning & Growth,Development Control,Advertising,28/06/2018,Supplies & Services,87066,COMMUNITIES
630,Bridgford Energy Consultants Ltd,Capital Expenditure,Transformation & Innovation,Cotgrave Masterplan,Legal & Professional Services,15/05/2018,Supplies & Services,85966,CAPITAL
630,Rsm,Finance & Corporate Services,Financial Services,Internal Audit,Legal & Professional Services,01/06/2018,Supplies & Services,85465,FINANCE & CORPORATE SERVICES
630,Rsm,Finance & Corporate Services,Financial Services,Internal Audit,Legal & Professional Services,04/06/2018,Supplies & Services,86222,FINANCE & CORPORATE SERVICES
622.8,Do Not Use See Reach Publishing,Communities,Planning & Growth,Development Control,Advertising,18/05/2018,Supplies & Services,85596,COMMUNITIES
620.95,Nottinghamshire County Council,Neighbourhoods,Leisure Contracts & Car Parks,Leisure Management Contract,Grounds Maintenance,18/04/2018,Premises Related Expenditure,83769,FINANCE & CORPORATE SERVICES
620,Thorn Baker Limited,Neighbourhoods,Waste & Fleet Management,Waste Collection,Agency Staff,08/06/2018,Employee Related Expenditure,86622,NEIGHBOURHOODS
614.42,David Parr Limited,Neighbourhoods,Waste & Fleet Management,Garage,Contractors-Transport,27/04/2018,Transport Related Expenditure,84799,NEIGHBOURHOODS
608.28,Print Image Network Ltd,Finance & Corporate Services,Democratic Services,Electoral Registration,External Printing,19/04/2018,Supplies & Services,84732,FINANCE & CORPORATE SERVICES
606.03,British Gas Business,Transformation,Property Services,The Point,Electricity,24/05/2018,Premises Related Expenditure,85950,TRANSFORMATION
600,Streetwise Environmental Ltd,Capital Expenditure,Transformation & Innovation,Bingham Land Off Chapel Lane,Legal & Professional Services,04/05/2018,Supplies & Services,84736,CAPITAL
600,The Ear Foundation,Finance & Corporate Services,Democratic Services,Members Services,Grants,25/04/2018,Supplies & Services,85075,FINANCE & CORPORATE SERVICES
600,Wellbeing Clinic Ltd,Transformation,Human Resources,Human Resources,Legal & Professional Services,25/04/2018,Supplies & Services,80043,TRANSFORMATION
581.25,Sf Recruitment Ltd,Finance & Corporate Services,Financial Services,Financial Services,Agency Staff,19/04/2018,Employee Related Expenditure,85089,FINANCE & CORPORATE SERVICES
581.25,Sf Recruitment Ltd,Finance & Corporate Services,Financial Services,Financial Services,Agency Staff,04/05/2018,Employee Related Expenditure,85285,FINANCE & CORPORATE SERVICES
581.25,Sf Recruitment Ltd,Finance & Corporate Services,Financial Services,Financial Services,Agency Staff,11/05/2018,Employee Related Expenditure,85607,FINANCE & CORPORATE SERVICES
581.25,Sf Recruitment Ltd,Finance & Corporate Services,Financial Services,Financial Services,Agency Staff,18/05/2018,Employee Related Expenditure,85877,FINANCE & CORPORATE SERVICES
581.25,Sf Recruitment Ltd,Finance & Corporate Services,Financial Services,Financial Services,Agency Staff,08/06/2018,Employee Related Expenditure,86400,FINANCE & CORPORATE SERVICES
578,Commercial Surface Solutions Ltd,Neighbourhoods,Waste & Fleet Management,Depot,Responsive Works - Buildings,24/05/2018,Premises Related Expenditure,86118,NEIGHBOURHOODS
574.04,Arden Winch & Co Ltd,Neighbourhoods,Waste & Fleet Management,Waste Collection,Protective Clothing/Uniforms,04/06/2018,Supplies & Services,86113,NEIGHBOURHOODS
571.5,Do Not Use See Reach Publishing,Communities,Planning & Growth,Development Control,Advertising,19/04/2018,Supplies & Services,84779,COMMUNITIES
569.32,Adt Fire And Security Plc,Neighbourhoods,Strategic Housing,Hostel Hound Lodge,Fire Precautions &  Alarms,25/04/2018,Premises Related Expenditure,84860,NEIGHBOURHOODS
565,Access Doors,Neighbourhoods,Waste & Fleet Management,Depot,Planned Maintenance Recharge,27/04/2018,Supplies & Services,85281,NEIGHBOURHOODS
558.5,Havas People Ltd,Neighbourhoods,Waste & Fleet Management,Depot,Employee Advertising,15/05/2018,Employee Related Expenditure,84788,NEIGHBOURHOODS
558,Temperature Control Limited,Transformation,Property Services,Arena Civic Centre,Responsive Works - Buildings,21/05/2018,Premises Related Expenditure,85517,TRANSFORMATION
556,Streetwise Environmental Ltd,Neighbourhoods,Environmental Health,Anti Social Behaviour,Penalties,01/06/2018,Income,85272,NEIGHBOURHOODS
555,Medigold Health Consultancy Ltd,Transformation,Human Resources,Human Resources,Legal & Professional Services,24/05/2018,Supplies & Services,86219,TRANSFORMATION
552.5,Parkwood Community Leisure,Transformation,Property Services,Arena Civic Centre,Other Miscellaneous Expenses,19/06/2018,Supplies & Services,86577,TRANSFORMATION
550,Darren Bowles,Communities,Community Development,Arts,Projects & Activities,29/06/2018,Supplies & Services,87099,COMMUNITIES
547.33,Print Image Network Ltd,Finance & Corporate Services,Democratic Services,Electoral Registration,External Printing,19/06/2018,Supplies & Services,86620,FINANCE & CORPORATE SERVICES
545,Local Government Association,Finance & Corporate Services,Democratic Services,Members Services,Conferences - Members,04/05/2018,Supplies & Services,85059,FINANCE & CORPORATE SERVICES
545,Local Government Association,Finance & Corporate Services,Emt & Transformation,Executive Management Team,Conferences - Employees,04/05/2018,Supplies & Services,85059,FINANCE & CORPORATE SERVICES
537.9,Bt Telephone Payment Centre,Transformation,Ict,Telephones,Telephone Rental,09/05/2018,Supplies & Services,84833,TRANSFORMATION
536.44,Xerox (Uk) Limited,Transformation,Ict,Photocopiers,Rental & Copy Charges,04/05/2018,Supplies & Services,84972,TRANSFORMATION
535.5,Do Not Use See Reach Publishing,Communities,Planning & Growth,Development Control,Advertising,19/04/2018,Supplies & Services,84726,COMMUNITIES
528.5,Certas Energy T/A Pace Fuelcare,Neighbourhoods,Waste & Fleet Management,Fleet,Diesel,04/05/2018,Transport Related Expenditure,85453,NEIGHBOURHOODS
525,Tameside Mbc,Finance & Corporate Services,Revenues & Benefits,Council Tax,Subscriptions,25/04/2018,Supplies & Services,84329,FINANCE & CORPORATE SERVICES
525,Tameside Mbc,Finance & Corporate Services,Revenues & Benefits,Housing Benefits Admin.,Subscriptions,25/04/2018,Supplies & Services,84329,FINANCE & CORPORATE SERVICES
522,Trevor Roberts Associates Ltd,Communities,Planning & Growth,Development Control,Training Expenses,04/06/2018,Employee Related Expenditure,86255,COMMUNITIES
520,East Midlands Markets And Events Ltd,Transformation,Property Services,Bingham Market Stalls,Legal & Professional Services,04/05/2018,Supplies & Services,85148,TRANSFORMATION
515.79,Do Not Use See Reach Publishing,Communities,Planning & Growth,Development Control,Advertising,04/06/2018,Supplies & Services,86036,COMMUNITIES
513.17,Royal Mail Group Ltd,Transformation,Bsu,Central Mail,Postages,09/05/2018,Supplies & Services,85292,TRANSFORMATION
511.4,Maltby & Company,Transformation,Property Services,Land Holdings,Planned Maintenance Recharge,25/04/2018,Supplies & Services,84703,TRANSFORMATION
504.49,British Gas Business,Transformation,Property Services,The Point,Electricity,09/05/2018,Premises Related Expenditure,84826,TRANSFORMATION
501.62,Water Plus,Communities,Community Development,Gamston Community Hall,Water Charges,25/04/2018,Premises Related Expenditure,84372,COMMUNITIES
482.5,Lodge Tyre Co.Ltd,Neighbourhoods,Waste & Fleet Management,Tanker Services,Tyres,18/04/2018,Transport Related Expenditure,84780,NEIGHBOURHOODS
461.17,Daisy Communications Ltd,Transformation,Ict,Telephones,Telephone Rental,04/05/2018,Supplies & Services,84783,TRANSFORMATION
415.75,Clearwater Technology Ltd,Transformation,Property Services,Arena Civic Centre,Service Maintenance Contracts,18/05/2018,Premises Related Expenditure,85782,TRANSFORMATION
408.37,Do Not Use See Reach Publishing,Communities,Planning & Growth,Development Control,Advertising,18/05/2018,Supplies & Services,85600,COMMUNITIES
395,Hiring Wizard,Neighbourhoods,Waste & Fleet Management,Depot,Employee Advertising,04/06/2018,Employee Related Expenditure,86268,NEIGHBOURHOODS
395,Hiring Wizard,Transformation,Bsu,Business Support Unit,Employee Advertising,04/06/2018,Employee Related Expenditure,86268,TRANSFORMATION
375,Nuthall Electrical Services Ltd,Communities,Community Development,Rushcliffe Country Park,Planned Maintenance Recharge,25/04/2018,Supplies & Services,84853,COMMUNITIES
370,Lodge Tyre Co.Ltd,Neighbourhoods,Waste & Fleet Management,Tanker Services,Tyres,15/05/2018,Transport Related Expenditure,85655,NEIGHBOURHOODS
347.5,Clearwater Technology Ltd,Communities,Community Development,Gresham,Service Maintenance Contracts,18/05/2018,Premises Related Expenditure,85782,COMMUNITIES
300,Nottingham City Council,Finance & Corporate Services,Democratic Services,Parish Council Elections,Training Expenses,27/04/2018,Employee Related Expenditure,84598,OBSOLETE
279,Do Not Use See Reach Publishing,Communities,Planning & Growth,Conservation,Advertising,19/04/2018,Supplies & Services,84776,COMMUNITIES
279,Do Not Use See Reach Publishing,Communities,Planning & Growth,Development Control,Advertising,19/04/2018,Supplies & Services,84776,COMMUNITIES
225,Clearwater Technology Ltd,Neighbourhoods,Waste & Fleet Management,Depot,Service Maintenance Contracts,18/05/2018,Premises Related Expenditure,85782,NEIGHBOURHOODS
214.7,Do Not Use See Reach Publishing,Communities,Planning & Growth,Conservation,Advertising,24/05/2018,Supplies & Services,85870,COMMUNITIES
213.75,Clearwater Technology Ltd,Communities,Community Development,Alford Road,Service Maintenance Contracts,18/05/2018,Premises Related Expenditure,85782,COMMUNITIES
213.75,Clearwater Technology Ltd,Neighbourhoods,Strategic Housing,Hostel Hound Lodge,Service Maintenance Contracts,18/05/2018,Premises Related Expenditure,85782,NEIGHBOURHOODS
202.5,Lodge Tyre Co.Ltd,Neighbourhoods,Waste & Fleet Management,Glass Recycling & Bring Sites,Tyres,18/04/2018,Transport Related Expenditure,84780,NEIGHBOURHOODS
200,Nottingham City Council,Neighbourhoods,Environmental Health,Dog Control,Training Expenses,27/04/2018,Employee Related Expenditure,84598,NEIGHBOURHOODS
200,Nuthall Electrical Services Ltd,Communities,Community Development,West Park,Planned Maintenance Recharge,25/04/2018,Supplies & Services,84853,COMMUNITIES
200,Nuthall Electrical Services Ltd,Transformation,Property Services,Land Holdings,Planned Maintenance Recharge,25/04/2018,Supplies & Services,84853,TRANSFORMATION
191.25,Clearwater Technology Ltd,Communities,Community Development,West Park,Service Maintenance Contracts,18/05/2018,Premises Related Expenditure,85782,COMMUNITIES
155.7,Do Not Use See Reach Publishing,Communities,Planning & Growth,Conservation,Advertising,18/05/2018,Supplies & Services,85596,COMMUNITIES
150,Lodge Tyre Co.Ltd,Neighbourhoods,Waste & Fleet Management,Depot,Tyres,21/06/2018,Transport Related Expenditure,86953,NEIGHBOURHOODS
146.75,Clearwater Technology Ltd,Communities,Community Development,Lutterell Hall,Service Maintenance Contracts,18/05/2018,Premises Related Expenditure,85782,COMMUNITIES
138.68,Do Not Use See Reach Publishing,Communities,Planning & Growth,Conservation,Advertising,19/04/2018,Supplies & Services,84723,COMMUNITIES
136.13,Do Not Use See Reach Publishing,Communities,Planning & Growth,Conservation,Advertising,18/05/2018,Supplies & Services,85600,COMMUNITIES
135,Clearwater Technology Ltd,Communities,Community Development,Rushcliffe Country Park,Service Maintenance Contracts,18/05/2018,Premises Related Expenditure,85782,COMMUNITIES
129,Lodge Tyre Co.Ltd,Neighbourhoods,Environmental Health,Pest Control,Tyres,15/05/2018,Transport Related Expenditure,85655,NEIGHBOURHOODS
123.75,Clearwater Technology Ltd,Communities,Community Development,Sir Julien Cahn Pavilion,Service Maintenance Contracts,18/05/2018,Premises Related Expenditure,85782,COMMUNITIES
112.5,Clearwater Technology Ltd,Communities,Community Development,Gamston Community Hall,Service Maintenance Contracts,18/05/2018,Premises Related Expenditure,85782,COMMUNITIES
95,Lodge Tyre Co.Ltd,Neighbourhoods,Waste & Fleet Management,Depot,Tyres,18/04/2018,Transport Related Expenditure,84780,NEIGHBOURHOODS
93.5,Daisy Communications Ltd,Transformation,Ict,Telephones,Telephone Call Charges,04/05/2018,Supplies & Services,84783,TRANSFORMATION
90.4,Reach Publishing Services Limited,Communities,Planning & Growth,Conservation,Advertising,28/06/2018,Supplies & Services,87066,COMMUNITIES
82.5,Lodge Tyre Co.Ltd,Neighbourhoods,Waste & Fleet Management,Depot,Tyres,15/05/2018,Transport Related Expenditure,85655,NEIGHBOURHOODS
75,Nottingham City Council,Neighbourhoods,Environmental Health,Community Safety,Training Expenses,27/04/2018,Employee Related Expenditure,84598,NEIGHBOURHOODS
45,Lodge Tyre Co.Ltd,Communities,Community Development,Facilities Team,Tyres,21/06/2018,Transport Related Expenditure,86953,COMMUNITIES
6.7,Bt Telephone Payment Centre,Transformation,Ict,Telephones,Telephone Call Charges,09/05/2018,Supplies & Services,84833,TRANSFORMATION
4.5,B & K Thomas (Holdings) Limited,Finance & Corporate Services,Financial Services,Financial Services,Other Miscellaneous Expenses,08/06/2018,Supplies & Services,86647,FINANCE & CORPORATE SERVICES
"92,370,390.07",,,,,,,,,
